Cogmind - Beta 12 @@@ ROGUE MODE // 2023.03.22 @ 10:35:13 // Winter2019/RPGLIKE Player: ArabianSandBoa Result: Destroyed by G-73 Enforcer with Heavy Laser Performance ------------- Evolutions (6) 3000 Regions Visited (29) 5800 Robots Destroyed (713) 3565 Value Destroyed (32824) 32824 Prototype IDs (71) 1420 Alien Tech Used (0) 0 Bonus (14659) 14659 TOTAL SCORE: 61268 Bonus ------- Triggered High Security 500 High Alert Combat Kills 11113 Follower Combat Kills 2954 Entered Garrisons 600 Entered DSFs 500 Network Hubs Disabled 200 Aligned with FarCom 300 Built Enhanced Grunts 300 A7 Reached Mainframe 300 Met R17 at Cetus 500 Friendly Fire -2608 Cogmind --------- Core Integrity 0/1000 Matter 280/300 Energy 620/850 System Corruption 5% Temperature Hot (214) Movement Immobile (Siege) Ox1 Location -4/Hub_04(d) Parts ------- > --- POWER (3) -------- Quantum Reactor Quantum Reactor Quantum Reactor > --- PROPULSION (5) --- Centrium Heavy Treads Advanced Heavy Siege Treads > --- UTILITY (11) ----- Advanced Cooling System Particle Accelerator (fused) 8R-AWN's Armor/EX Damper Plating Advanced Hacking Suite Advanced Hacking Suite > --- WEAPON (6) ------- Storm Laser EMDS > --- INVENTORY (6) ---- Centrium Heavy Treads Encrypted Comm Array Experimental Thermal Shield Improved Force Field 8R-AWN's Boregun Peak State ------------ > --- POWER ------------ Quantum Reactor Quantum Reactor Quantum Reactor > --- PROPULSION ------- Centrium Heavy Treads Advanced Heavy Siege Treads > --- UTILITY ---------- Particle Accelerator 8R-AWN's Armor/EX Damper Plating Experimental Thermal Shield Improved Force Field Advanced Hacking Suite > --- WEAPON ----------- Storm Laser EMDS > --- INVENTORY -------- Centrium Heavy Treads Advanced Power Amplifier Advanced Cooling System Encrypted Comm Array 8R-AWN's Boregun [Rating: 195] Favorites ----------- Power Light Particle Reactor Engine Light Angular Momentum Engine Power Core Neutrino Core Reactor Light Particle Reactor Propulsion Armored Huge Wheel Treads Advanced Heavy Siege Treads Leg Aluminum Leg Wheel Armored Huge Wheel Hover Unit Backup Propulsion III Flight Unit Experimental Q-thruster Utility Salvage Targeting Computer Device Advanced Transmission Jammer Storage Experimental Energy Well Processor Salvage Targeting Computer Hackware Hacking Suite Protection 8R-AWN's Armor/EX Weapon 8R-AWN's Boregun Energy Gun Storm Laser Energy Cannon Cooled Particle Cannon Ballistic Gun 8R-AWN's Boregun Ballistic Cannon Gauss Cannon Launcher Grenade Launcher Slashing Weapon Plasma Sword Piercing Weapon CR-A16's Pointy Stick Special Melee Weapon Improved Datajack Build | -11 -10 -10 -9 -9 -9 -8 -8 -8 -8 -8 -8 -8 -7 -7 -7 -7 -6 -6 -6 -5 -5 -5 -4 -4 -4 -4 -4 -4 -4 ------- Run | Jun Mat Min Mat Min Exi Min Mat Gar Mat Gar Mat Gar Fac Low Low Zio Pro Fac DSF Fac Was Fac Fac Was Fac Ext Cet Arc Hub Slots Evolved 21 | 3 3 1 3 1 . 1 . 1 . . . . 1 1 . . . . . 1 . . . 1 1 1 1 . 1 Power 2 | . . . . . . 1 . . . . . . . . . . . . . . . . . . . 1 . . . Propulsion 4 | . . . 1 . . . . . . . . . . . . . . . . . . . . 1 1 . . . 1 Utility 10 | 3 1 1 1 . . . . 1 . . . . 1 1 . . . . . 1 . . . . . . . . . Weapon 5 | . 2 . 1 1 . . . . . . . . . . . . . . . . . . . . . . 1 . . Parts Attached 197 | 6 9 5 15 7 14 11 12 4 2 4 . 3 7 2 1 10 . . 1 6 8 23 1 9 3 3 12 1 18 Power 18 | . 1 1 2 1 1 2 1 1 . . . . . 1 . . . . . . 1 . . 2 . 1 1 . 2 Engine 4 | . . 1 2 1 . . . . . . . . . . . . . . . . . . . . . . . . . Core 7 | . 1 . . . 1 1 1 1 . . . . . 1 . . . . . . . . . . . 1 . . . Reactor 7 | . . . . . . 1 . . . . . . . . . . . . . . 1 . . 2 . . 1 . 2 Propulsion 13 | 1 1 . 1 1 1 . . . . . . . . . . . . . . . . 2 . 3 2 . 1 . . Treads 4 | . . . . . . . . . . . . . . . . . . . . . . . . 1 2 . 1 . . Leg . | . . . . . . . . . . . . . . . . . . . . . . . . . . . . . . Wheel 7 | 1 1 . 1 1 1 . . . . . . . . . . . . . . . . 1 . 1 . . . . . Hover . | . . . . . . . . . . . . . . . . . . . . . . . . . . . . . . Flight 2 | . . . . . . . . . . . . . . . . . . . . . . 1 . 1 . . . . . Utility 111 | 4 4 2 6 2 7 9 10 2 2 4 . 3 2 1 . 7 . . 1 3 5 10 1 4 1 2 5 1 13 Device 65 | 4 . 1 2 1 3 5 3 2 1 3 . 2 1 1 . 3 . . 1 . 4 8 1 2 1 1 5 1 9 Storage 1 | . . . . . . 1 . . . . . . . . . . . . . . . . . . . . . . . Processor 16 | . 4 . 1 1 3 1 1 . . . . . . . . 2 . . . 3 . . . . . . . . . Hackware 12 | . . . . . . . 4 . 1 . . 1 . . . 1 . . . . . . . . . 1 . . 4 Protection 17 | . . 1 3 . 1 2 2 . . 1 . . 1 . . 1 . . . . 1 2 . 2 . . . . . Artifact . | . . . . . . . . . . . . . . . . . . . . . . . . . . . . . . Weapon 55 | 1 3 2 6 3 5 . 1 1 . . . . 5 . 1 3 . . . 3 2 11 . . . . 5 . 3 Energy Gun 11 | . 2 1 . . . . 1 1 . . . . . . . 1 . . . . . 3 . . . . 2 . . Energy Cannon 8 | . . 1 . . . . . . . . . . 3 . . 1 . . . . . 1 . . . . . . 2 Ballistic Gun 26 | 1 . . 5 2 5 . . . . . . . 2 . 1 . . . . 1 1 5 . . . . 3 . . Ballistic Cannon 1 | . . . . 1 . . . . . . . . . . . . . . . . . . . . . . . . . Launcher 2 | . 1 . . . . . . . . . . . . . . . . . . . . . . . . . . . 1 Special Weapon . | . . . . . . . . . . . . . . . . . . . . . . . . . . . . . . Impact Weapon . | . . . . . . . . . . . . . . . . . . . . . . . . . . . . . . Slashing Weapon 2 | . . . . . . . . . . . . . . . . . . . . . . 2 . . . . . . . Piercing Weapon 4 | . . . . . . . . . . . . . . . . 1 . . . 2 1 . . . . . . . . Special Melee Weapon 1 | . . . 1 . . . . . . . . . . . . . . . . . . . . . . . . . . Unidentified Prototypes 32 | . . . 2 . 1 5 2 . . . . . 2 . . 4 . . . . . 11 . . . . 3 . 2 Corrupted Parts 1 | . . . . . . . . . . . . . . . . . . . . . . . . . . . 1 . . System Corruption 4 | . . . . . . . . . . . . . . . . . . . . . . . . . . . 4 . . Parts Lost 4 | . . . 1 1 1 . . . . . . . . . . . . . . . . 1 . . . . . . . Power . | . . . . . . . . . . . . . . . . . . . . . . . . . . . . . . Propulsion . | . . . . . . . . . . . . . . . . . . . . . . . . . . . . . . Utility 3 | . . . 1 1 1 . . . . . . . . . . . . . . . . . . . . . . . . Weapon 1 | . . . . . . . . . . . . . . . . . . . . . . 1 . . . . . . . Highest Loss Streak 1 | . . . 1 1 1 . . . . . . . . . . . . . . . . 1 . . . . . . . To Critical Strikes . | . . . . . . . . . . . . . . . . . . . . . . . . . . . . . . Average Slot Usage (%) 78 | . 91 97 97 92 70 80 87 87 94 93 94 94 94 93 92 74 68 68 67 69 66 64 60 56 55 54 57 58 53 Engine 1 | . 5 . 7 6 4 . . . . . . . . . . . . . . . . . . . . . . . . Core 3 | . 6 9 . . 1 4 6 5 5 5 5 5 5 4 5 5 5 5 5 5 2 . . . . 1 . . . Reactor 5 | . . . . . . 4 6 5 5 5 5 5 5 5 5 5 5 5 5 5 7 10 10 9 9 8 11 12 12 Treads 1 | . . . . . . . . . . . . . . . . . . . . . . . . . 2 8 8 8 8 Wheel 5 | . 12 9 13 6 5 6 6 5 5 5 5 5 5 5 5 5 5 5 5 5 5 4 5 4 3 . . . . Device 16 | . 30 6 4 6 13 12 14 14 17 16 17 17 21 25 26 19 21 21 20 18 18 19 20 15 13 15 16 16 10 Processor 14 | . 17 39 31 33 22 18 15 11 11 11 11 11 11 10 10 12 15 15 15 20 17 14 10 5 4 . . . . Hackware 4 | . . . . . . . 9 11 15 17 17 17 12 10 10 3 . . . . . . . . . 1 . . 5 Protection 5 | . . 5 14 6 5 6 3 5 1 . . . 3 5 5 6 5 5 5 5 5 5 5 8 9 8 8 8 8 Energy Gun 3 | . 12 21 1 . . . . . 5 5 5 5 2 . . 3 5 5 5 5 5 4 5 4 4 4 6 4 4 Energy Cannon 1 | . . 5 7 . . . . . . . . . 2 5 5 1 . . . . . . . . . . . . 2 Ballistic Gun 12 | . . . 13 22 9 25 25 23 23 23 23 23 22 21 19 8 5 5 5 4 . 4 5 4 4 4 4 8 3 Naked Turns . | . . . . . . . . . . . . . . . . . . . . . . . . . . . . . . Heaviest Build 203 | 10 14 30 38 29 71 64 58 59 59 75 58 58 88 90 90 113 90 90 90 89 109 115 118 170 171 185 198 198 203 Greatest Support 165 | 16 16 12 24 28 28 28 28 28 28 28 28 28 28 28 28 28 28 28 28 28 28 33 33 33 160 160 165 165 165 Greatest Overweight (x) 29 | . 1 2 2 1 2 2 2 2 2 2 2 2 3 3 3 29 3 3 3 3 3 3 3 9 5 1 1 1 1 Average Overweight (x) 1 | . . 1 1 . 1 1 1 1 2 1 2 2 2 2 2 3 3 3 2 2 2 3 3 3 3 1 1 1 1 Largest Inventory Capacity 6 | 1 2 2 3 3 3 4 5 5 5 5 5 5 5 5 5 5 5 5 5 5 5 6 6 6 6 6 6 6 6 Average Capacity 4 | . 1 2 2 3 3 3 4 5 5 5 5 5 5 5 5 5 5 5 5 5 5 5 6 6 6 6 6 6 6 Most Carried 6 | 1 1 2 3 3 3 4 5 5 5 5 5 5 5 5 5 5 5 5 5 5 5 6 6 6 6 6 6 6 6 Average Carried 4 | . . 1 2 2 2 3 4 4 4 4 5 5 4 4 5 4 5 5 5 4 4 5 6 5 5 4 5 5 5 Final Capacity 6 | 1 2 2 3 3 3 4 5 5 5 5 5 5 5 5 5 5 5 5 5 5 5 6 6 6 6 6 6 6 6 Final Carried 6 | 1 1 2 3 3 3 4 5 5 5 5 5 5 5 5 5 5 5 5 5 3 5 6 6 6 6 6 6 6 6 Class Distribution -------------------- 39% | Scavenger-Gunner 20% | Scavenger-Mutant 12% | Hacker-Gunner 11% | Mutant 5% | Scavenger-Tank 5% | Gunner Dominant Class ---------------- Mutant | -10/Materials Gunner | -10/Mines Mutant | -9/Materials Gunner | -9/Mines Mutant | -9/Exiles Scavenger-Gunner | -8/Mines Scavenger-Gunner | -8/Materials Scavenger-Gunner | -8/Garrison Hacker-Gunner | -8/Materials Hacker-Gunner | -8/Garrison Hacker-Gunner | -8/Materials Hacker-Gunner | -8/Garrison Scavenger-Gunner | -7/Factory Scavenger-Gunner | -7/Lower Caves Scavenger-Gunner | -7/Lower Caves Scavenger-Mutant | -7/Zion Scavenger-Gunner | -6/Proximity Caves Scavenger-Mutant | -6/Factory Scavenger-Gunner | -6/DSF Scavenger-Gunner | -5/Factory Scavenger-Gunner | -5/Waste Scavenger-Gunner | -5/Factory Scavenger-Gunner | -4/Factory Scavenger-Gunner | -4/Waste Scavenger-Mutant | -4/Factory Scavenger-Tank | -4/Extension Scavenger-Executioner | -4/Cetus Scavenger-Tank | -4/Archives Scavenger-Gunner | -4/Hub_04(d) Resources | -11 -10 -10 -9 -9 -9 -8 -8 -8 -8 -8 -8 -8 -7 -7 -7 -7 -6 -6 -6 -5 -5 -5 -4 -4 -4 -4 -4 -4 -4 ----------- Run | Jun Mat Min Mat Min Exi Min Mat Gar Mat Gar Mat Gar Fac Low Low Zio Pro Fac DSF Fac Was Fac Fac Was Fac Ext Cet Arc Hub Matter Collected 15537 | 287 464 50 921 365 439 745 1893 1502 940 1241 326 1366 1174 603 546 44 188 . 34 140 70 618 84 50 124 240 271 81 731 Remotely 120 | 26 94 . . . . . . . . . . . . . . . . . . . . . . . . . . . . Salvage Created 34654 | 127 1026 214 2776 1114 415 708 2522 1349 1122 1519 438 1562 2557 407 776 . 546 102 470 1702 1461 3852 248 401 586 1944 583 484 3643 Parts 1850 | 13 72 12 163 58 83 56 175 85 75 93 30 106 127 41 51 . 21 5 15 79 24 170 11 4 15 92 25 13 136 Haulers Intercepted 33 | . 2 . 5 . . . 5 . 2 . 1 . 6 . . . 1 . 1 1 . 5 . . . . . . 4 Recyclers Shooed 10 | 1 1 1 1 . . . 2 . . . 1 . 2 . . . . . . 1 . . . . . . . . . Parts Field Recycled . | . . . . . . . . . . . . . . . . . . . . . . . . . . . . . . Retrieved Matter . | . . . . . . . . . . . . . . . . . . . . . . . . . . . . . . Parts Self-Destructed 91 | . . . . . . . . . . . . . . 37 32 . 22 . . . . . . . . . . . . Prevented . | . . . . . . . . . . . . . . . . . . . . . . . . . . . . . . Kills | -11 -10 -10 -9 -9 -9 -8 -8 -8 -8 -8 -8 -8 -7 -7 -7 -7 -6 -6 -6 -5 -5 -5 -4 -4 -4 -4 -4 -4 -4 ------- Run | Jun Mat Min Mat Min Exi Min Mat Gar Mat Gar Mat Gar Fac Low Low Zio Pro Fac DSF Fac Was Fac Fac Was Fac Ext Cet Arc Hub Combat Hostiles Destroyed 523 | . 20 4 50 21 4 17 43 31 20 30 6 35 25 14 17 . 7 1 4 20 6 44 1 . 6 30 9 3 55 Guns 463 | . 12 2 23 21 4 17 43 31 18 30 6 35 22 13 17 . 6 1 4 19 5 44 1 . 4 28 9 3 45 Cannons 26 | . . . 21 . . . . . . . . . . 1 . . . . . . . . . . . . . . 4 AOE 20 | . 8 2 5 . . . . . 2 . . . 3 . . . . . . . . . . . . . . . . Classes Destroyed 29 | 2 5 1 6 1 2 1 2 1 . 1 . 1 . 2 . . 1 . . . 1 . . . . . . . 2 Worker 21 | . 1 . . . . . 2 . 1 . 1 . 3 . . . . . . 3 . 6 . . 1 . . . 3 Builder 26 | . . . 1 1 . 1 5 . 1 . 1 . 3 . . . . . . 1 . 9 1 . . 1 . . 1 Tunneler 10 | 3 . . . 5 . . . . . . . . 1 . . . . . . 1 . . . . . . . . . Hauler 33 | . 2 . 5 . . . 5 . 2 . 1 . 6 . . . 1 . 1 1 . 5 . . . . . . 4 Recycler 30 | 1 2 1 4 2 . 1 4 . 1 . 1 . 3 . . . . . . 1 . 4 1 . 1 3 . . . Carrier 1 | . . . . . . 1 . . . . . . . . . . . . . . . . . . . . . . . Minesweeper 1 | . . . . . . . . . . . . . . . . . 1 . . . . . . . . . . . . Mechanic 3 | . . . 1 . . . . . . . 1 . 1 . . . . . . . . . . . . . . . . Operator 18 | . 2 . 2 . . . 2 . 1 . . . . . . . . . . . . 1 . . . 2 . 6 2 Turret 1 | . . . . . 1 . . . . . . . . . . . . . . . . . . . . . . . . Watcher 39 | . 3 . 3 . . . 5 2 5 . . . 6 . . . . . . 3 . 6 . . . 3 . . 3 Swarmer 66 | . . 1 7 5 . 4 9 5 2 7 3 4 1 3 4 . . . . 1 . . . . 2 6 2 . . Saboteur 2 | . . . . . . . . . . . . . . . . . . . . . . . . . . . . . 2 Grunt 239 | . 20 3 27 11 . 11 19 14 10 12 2 16 13 8 7 . 6 . 3 9 . 16 . . . 6 . . 26 Brawler 17 | . . . 3 1 . . 1 3 . . . 2 4 . 1 . . . . . . 1 . . . . . . 1 Duelist 18 | . . . 3 1 . 1 1 2 . 1 . 1 2 . . . . . . . . 1 . . . 1 . . 4 Protector 9 | . . . 2 . . . 1 . . . . . . . . . . . . . . 4 . . . . . . 2 Sentry 61 | . . . 8 . . . 9 3 5 3 1 6 1 . 1 . . 1 . 4 . 1 1 . 1 9 2 3 2 Demolisher 1 | . . . . . . . . . . . . . . . . . . . . . . . . . . . . . 1 Specialist 10 | . . . . . . . . . . 4 . . . . . . . . . . . 3 . . . 1 . . 2 Hunter 25 | . . . . . . . 2 . 2 . . 1 1 1 . . . . . 4 . 8 . . . 4 . . 2 Programmer 35 | . . . . . . . . 5 . 3 . 4 2 1 . . . . . 2 . 8 . . 2 1 . . 7 Heavy 8 | . . . . . . . 1 . 1 . . . 1 . . . . . 1 . . 2 . . . . . . 2 Behemoth 7 | . . . . . . . . . . . . 1 . . 1 . 1 . . . . . . . 1 2 . . 1 Compactor 6 | . . . . . . . . . . . . . . . . . . . . . 6 . . . . . . . . Cetus Guard 5 | . . . . . . . . . . . . . . . . . . . . . . . . . . . 5 . . Lightning 3 | . . . . . . . . . . . . . . . . . . . . . . . . . . . . . 3 Zionite 8 | . . . . . 8 . . . . . . . . . . . . . . . . . . . . . . . . Samaritan 1 | . . . . . . . . . . . . . . 1 . . . . . . . . . . . . . . . Thief 1 | . . . . . . . . . . . . . . 1 . . . . . . . . . . . . . . . Master Thief 3 | . . . . . . . . . . . . . . . 3 . . . . . . . . . . . . . . Assembled 6 | . . . . 3 3 . . . . . . . . . . . . . . . . . . . . . . . . Surgeon 1 | . . . . . . . . . . . . . . . . . . . . . . . . . 1 . . . . Thug 1 | . . . . 1 . . . . . . . . . . . . . . . . . . . . . . . . . Guerrilla 1 | . . . . . . . . . . . . . . . . . . 1 . . . . . . . . . . . Infiltrator 1 | . . . . . . . . . . . . . . . . . . . . . . . . . . . . . 1 Best Kill Streak 18 | 2 5 3 10 7 6 4 6 5 7 10 8 6 17 4 4 . 4 1 4 14 3 14 2 . 2 6 3 2 18 Combat Bots Only 13 | . 3 2 10 4 3 3 5 5 6 10 5 6 10 4 4 . 3 1 3 10 3 9 1 . 2 5 3 2 13 Max Kills in Single Turn 3 | 1 2 2 2 2 2 2 3 2 3 3 2 3 3 1 2 . 2 1 1 3 1 3 1 . 2 3 1 1 2 Gunslinging 2 | . 1 . 1 1 . 1 1 1 1 2 1 2 1 . 1 . . . . . . . . . . . . . . Exploded 2 | . 2 2 1 . . . . . 2 . . . 2 . . . . . . . . . . . . . . . . Melee . | . . . . . . . . . . . . . . . . . . . . . . . . . . . . . . Uniques/NPCs Destroyed 5 | . . . . . 4 1 . . . . . . . . . . . . . . . . . . . . . . . 8R-AWN (-9/Exiles) EX-DEC (-9/Exiles) EX-BIN (-9/Exiles) EX-HEX (-9/Exiles) AD-0RF (-8/Mines) Combat | -11 -10 -10 -9 -9 -9 -8 -8 -8 -8 -8 -8 -8 -7 -7 -7 -7 -6 -6 -6 -5 -5 -5 -4 -4 -4 -4 -4 -4 -4 -------- Run | Jun Mat Min Mat Min Exi Min Mat Gar Mat Gar Mat Gar Fac Low Low Zio Pro Fac DSF Fac Was Fac Fac Was Fac Ext Cet Arc Hub Damage Taken 17921 | . 415 26 2359 246 462 422 533 483 664 338 73 515 350 136 296 . 72 64 183 648 . 2314 . . 172 2127 214 188 4621 Core 10151 | . 336 23 1490 170 347 197 368 210 455 275 57 416 259 98 206 . 38 51 96 332 . 1170 . . 82 1043 100 112 2220 Absorbed by Shields 4455 | . . . . . . . . . . . . 17 273 126 169 . 19 . 74 79 . 522 . . 183 711 225 197 1860 Reduced by Siege Mode 53 | . . . . . . . . . . . . . . . . . . . . . . . . . . 6 . 2 45 Redirected to Core 9170 | . 237 9 1300 131 298 143 335 200 381 211 57 351 228 80 198 . 38 51 96 332 . 1063 . . 68 1012 86 112 2153 Redirected to Shielding 397 | . . . . . . 23 62 210 102 . . . . . . . . . . . . . . . . . . . . Regen/Repaired (Parts) 492 | . . . 20 . . . . . . . . . . . . . . . . . . . . 224 244 4 . . . Core Remaining (%) 83 | 100 . 96 . . . 100 . . . . . 96 . . . . 100 . 81 . . 12 . . . . . . . Volleys Fired 1401 | 27 84 8 181 43 44 33 86 99 46 66 16 69 71 38 36 1 8 6 8 44 10 110 11 1 31 69 16 19 120 Largest 5 | 1 2 3 3 4 3 4 4 4 4 4 4 4 5 4 4 1 1 1 1 1 1 2 1 1 1 1 3 3 3 Hottest 320 | 20 90 153 153 98 78 110 110 110 110 225 110 110 140 110 110 30 250 250 250 250 250 280 250 250 250 250 315 315 320 Shots Fired 3220 | 27 118 17 338 142 107 123 344 294 170 236 64 252 260 88 131 1 8 6 8 44 10 118 11 1 31 69 24 27 151 Gun 3005 | 27 82 16 209 142 107 123 344 294 170 236 64 252 255 74 129 1 8 6 8 44 10 118 11 1 31 69 24 27 123 Cannon 179 | . . 1 129 . . . . . . . . . 5 14 2 . . . . . . . . . . . . . 28 Launcher 36 | . 36 . . . . . . . . . . . . . . . . . . . . . . . . . . . . Special . | . . . . . . . . . . . . . . . . . . . . . . . . . . . . . . Kinetic 2635 | 27 14 . 195 142 107 123 344 294 170 234 64 252 255 74 129 1 . 4 . 15 . 63 9 . 19 25 14 10 51 Thermal 293 | . . . . . . . . . . 2 . . 5 14 2 . 8 2 8 29 10 55 2 1 12 44 10 17 72 Explosive 36 | . 36 . . . . . . . . . . . . . . . . . . . . . . . . . . . . Electromagnetic 256 | . 68 17 143 . . . . . . . . . . . . . . . . . . . . . . . . . 28 Robot Hit Streak 40 | 6 12 7 22 19 14 8 15 25 17 21 22 28 40 20 15 . 13 7 9 29 16 34 9 9 9 40 19 21 39 Robot Miss Streak 14 | 2 4 . 3 5 3 4 5 3 3 1 4 2 2 2 4 . 3 1 2 5 2 5 2 4 7 14 2 5 7 Penetration Max 2 | . . . . 1 1 2 2 1 1 1 2 1 1 1 1 . . . . 1 . 2 1 . . 1 1 . 1 Secondary Targets 56 | . 1 . 2 5 1 4 5 3 4 6 1 8 7 4 4 . . . . . . . . . . . . . 1 Max Gunslinging Chain 2 | . 1 . 1 1 1 1 2 1 1 2 1 2 1 1 1 . . . . . . . . . . . . . 1 Shots Hit Robots 1796 | 18 55 5 203 86 80 66 176 117 105 88 27 113 125 61 88 . 8 2 8 30 10 93 3 1 12 53 22 23 118 Core Hits 1419 | 9 40 5 81 38 30 38 98 61 47 51 13 55 73 30 31 . 25 5 16 75 28 184 8 3 20 100 33 36 186 Critical Kills 145 | . . . . 1 4 8 20 18 8 12 5 14 15 2 6 . . . . 1 . 14 1 . . 8 4 . 4 Critical Parts Destroyed 157 | . . . 2 2 9 5 24 22 11 15 6 10 12 7 7 . . . . 1 . 9 1 . . 3 3 1 7 Critical Strikes 325 | . 1 . 4 3 14 15 44 43 19 27 12 26 27 9 14 . . . . 2 . 23 2 . . 12 10 1 17 Destroy 319 | . . . 2 3 14 15 44 43 19 27 12 26 27 9 14 . . . . 2 . 23 2 . . 12 10 1 14 Corrupt 6 | . 1 . 2 . . . . . . . . . . . . . . . . . . . . . . . . . 3 Melee Attacks 7 | . . . . 2 4 . . . . . . . . . . . . . . 1 . . . . . . . . . Impact . | . . . . . . . . . . . . . . . . . . . . . . . . . . . . . . Slashing . | . . . . . . . . . . . . . . . . . . . . . . . . . . . . . . Piercing 1 | . . . . . . . . . . . . . . . . . . . . 1 . . . . . . . . . Sneak Attacks 6 | . . . . 2 4 . . . . . . . . . . . . . . . . . . . . . . . . Combat Hostiles . | . . . . . . . . . . . . . . . . . . . . . . . . . . . . . . Follow-up Attacks . | . . . . . . . . . . . . . . . . . . . . . . . . . . . . . . Damage Inflicted 72994 | 156 1683 283 5221 1685 1672 1381 3823 2684 2644 2401 821 2696 3586 1396 2116 . 820 292 619 2897 1784 7670 269 112 1609 5537 1648 2153 13336 Guns 65898 | 156 672 80 2403 1685 1672 1381 3823 2684 2315 2401 821 2696 3084 1066 2116 . 820 84 619 2897 1784 7572 269 112 1588 5537 1648 2153 11760 Cannons 3691 | . . . 2257 . . . . . . . . . 55 330 . . . . . . . . . . . . . . 1049 Explosions 3405 | . 1011 203 561 . . . . . 329 . . . 447 . . . . 208 . . . 98 . . 21 . . . 527 Melee . | . . . . . . . . . . . . . . . . . . . . . . . . . . . . . . Ramming . | . . . . . . . . . . . . . . . . . . . . . . . . . . . . . . Kinetic 31386 | 156 82 . 2245 1685 1672 1381 3823 2684 2315 2401 821 2696 3084 1066 2116 . . 17 . 64 . 1072 43 . . 301 320 143 1199 Thermal 35368 | . 116 203 145 . . . . . 329 . . . 224 330 . . 820 275 619 2833 1784 6500 226 112 1609 5236 1328 2010 10669 Explosive 1582 | . 895 . 311 . . . . . . . . . 278 . . . . . . . . 98 . . . . . . . Electromagnetic 4658 | . 590 80 2520 . . . . . . . . . . . . . . . . . . . . . . . . . 1468 Impact . | . . . . . . . . . . . . . . . . . . . . . . . . . . . . . . Slashing . | . . . . . . . . . . . . . . . . . . . . . . . . . . . . . . Piercing . | . . . . . . . . . . . . . . . . . . . . . . . . . . . . . . Highest Corruption 5 | . . . 2 2 2 . 1 1 1 1 1 2 1 1 1 1 . . . . . 1 . . . . 4 4 5 Average Corruption 1 | . . . 2 2 2 . 1 1 1 1 1 1 1 1 1 1 . . . . . 1 . . . . 4 4 4 Corruption Purged . | . . . . . . . . . . . . . . . . . . . . . . . . . . . . . . Corruption Blocked . | . . . . . . . . . . . . . . . . . . . . . . . . . . . . . . Effects 167 | . . . 2 14 25 . 6 17 6 12 1 15 4 7 5 . . . . . . 1 . . . . 11 8 33 Message Errors 39 | . . . . 7 4 . 1 3 2 6 . 2 . . 3 . . . . . . 1 . . . . 1 3 6 Matter Fused 33 | . . . . 3 4 . 3 4 1 2 . 1 . 3 . . . . . . . . . . . . 4 3 5 Heat Flow Errors 25 | . . . . 2 7 . 1 2 1 . . 2 . 1 . . . . . . . . . . . . 1 1 7 Energy Discharges 17 | . . . 1 . 3 . . 2 1 . . 4 2 1 . . . . . . . . . . . . 1 . 2 Parts Rejected 1 | . . . . . 1 . . . . . . . . . . . . . . . . . . . . . . . . Parts Fused 3 | . . . . . . . . 1 . . . 1 . . . . . . . . . . . . . . . . 1 Data Loss (minor) 17 | . . . . 1 2 . 1 1 . . 1 2 1 2 . . . . . . . . . . . . 1 . 5 Data Loss (major) 13 | . . . . 1 2 . . 1 1 1 . 1 1 . . . . . . . . . . . . . . . 5 Misfires 8 | . . . 1 . . . . . . 2 . . . . . . . . . . . . . . . . 2 1 2 Alerts 6 | . . . . . 1 . . . . 1 . 2 . . 2 . . . . . . . . . . . . . . Weapon Failures 5 | . . . . . 1 . . 3 . . . . . . . . . . . . . . . . . . 1 . . Overload Shots 2 | . . . . . . . . . . 2 . . . . . . . . . . . . . . . . . . . Overflow Damage 397 | . 59 30 188 . . . . . . . . . 27 . . . . 22 . . . . . . . . . . 71 Projectiles 168 | . . . 99 . . . . . . . . . . . . . . . . . . . . . . . . . 69 Explosions 229 | . 59 30 89 . . . . . . . . . 27 . . . . 22 . . . . . . . . . . 2 Melee . | . . . . . . . . . . . . . . . . . . . . . . . . . . . . . . Knockbacks . | . . . . . . . . . . . . . . . . . . . . . . . . . . . . . . Impact . | . . . . . . . . . . . . . . . . . . . . . . . . . . . . . . Kinetic . | . . . . . . . . . . . . . . . . . . . . . . . . . . . . . . Secondary . | . . . . . . . . . . . . . . . . . . . . . . . . . . . . . . Self-Inflicted Damage 353 | . 134 . 96 . . . . . . . . . 50 . . . . 64 . . . . . . . . . . 9 Shots 13 | . 7 . 2 . . . . . . . . . 2 . . . . 1 . . . . . . . . . . 1 Rammed . | . . . . . . . . . . . . . . . . . . . . . . . . . . . . . . Targets Rammed . | . . . . . . . . . . . . . . . . . . . . . . . . . . . . . . Kicked . | . . . . . . . . . . . . . . . . . . . . . . . . . . . . . . Crushed . | . . . . . . . . . . . . . . . . . . . . . . . . . . . . . . Highest Temperature 456 | . 258 54 361 142 224 456 218 222 300 378 105 298 332 286 286 . 331 282 229 278 261 328 . 88 352 244 398 392 340 Average Temperature 92 | . 64 23 87 19 85 115 66 56 73 50 31 64 93 91 110 . 124 145 105 122 127 136 . 46 118 52 148 168 88 Received Heat Transfer 4594 | . 153 15 1131 92 . 426 216 108 198 117 27 129 67 96 91 . 48 . 71 294 . 454 . . 18 206 38 8 591 Effects 33 | . . . 7 . 1 1 1 . 2 1 . . . . . . 4 . . 2 1 3 . . 1 . 4 4 1 Shutdowns 5 | . . . . . . 1 . . . . . . . . . . 1 . . . . . . . . . 1 2 . Energy Bleed 10 | . . . 1 . 1 . 1 . . 1 . . . . . . 1 . . . 1 1 . . 1 . . 1 1 Interference 16 | . . . 6 . . . . . 2 . . . . . . . 2 . . 2 . 2 . . . . 2 . . Matter Decay 1 | . . . . . . . . . . . . . . . . . . . . . . . . . . . 1 . . Short Circuit 1 | . . . . . . . . . . . . . . . . . . . . . . . . . . . . 1 . Siege Activations 13 | . . . . . . . . . . . . . . . . . . . . . . . . . . 4 1 1 7 Total Turns 274 | . . . . . . . . . . . . . . . . . . . . . . . . . . 88 25 14 147 Longest Duration 56 | . . . . . . . . . . . . . . . . . . . . . . . . . . 39 25 14 56 Robots Corrupted 3 | . . . 1 . . . . . . . . . . . . . . . . . . . . . . . . . 2 Combat Hostiles 1 | . . . 1 . . . . . . . . . . . . . . . . . . . . . . . . . . Parts Fried 35 | . 2 . 19 . . . . . . . . . . . . . . . . . . . . . . . . . 14 Impact Corruptions . | . . . . . . . . . . . . . . . . . . . . . . . . . . . . . . Robots Melted 13 | . . . . . . . . . . . . . . . . . 1 . . 1 1 . . . 2 2 . . 6 Combat Hostiles 13 | . . . . . . . . . . . . . . . . . 1 . . 1 1 . . . 2 2 . . 6 Parts Melted 140 | . . . . . . . . . . . . . . 1 . . 3 . 2 19 6 28 1 . 4 21 8 11 36 Heat Transferred 42660 | . 150 250 100 . . . . . 200 . . . 224 444 . . 1200 275 900 4100 2350 8035 300 150 2050 6613 1618 2750 10951 Parts Sabotaged . | . . . . . . . . . . . . . . . . . . . . . . . . . . . . . . Parts Stolen 3 | . . . . . . . . . . . . . . 1 2 . . . . . . . . . . . . . . Parts Stripped . | . . . . . . . . . . . . . . . . . . . . . . . . . . . . . . Power Chain Reactions 9 | . 3 1 4 . . . . . . . . . . . . . . . . . . . . . . . . . 1 Missiles Intercepted . | . . . . . . . . . . . . . . . . . . . . . . . . . . . . . . Alert | -11 -10 -10 -9 -9 -9 -8 -8 -8 -8 -8 -8 -8 -7 -7 -7 -7 -6 -6 -6 -5 -5 -5 -4 -4 -4 -4 -4 -4 -4 ------- Run | Jun Mat Min Mat Min Exi Min Mat Gar Mat Gar Mat Gar Fac Low Low Zio Pro Fac DSF Fac Was Fac Fac Was Fac Ext Cet Arc Hub Peak Influence 2250 | 20 1005 585 1876 1140 . 363 926 2250 1267 1936 1149 2163 1812 . . . . 225 246 629 235 1240 717 250 457 1087 2095 1427 1717 Initial 1135 | . 13 386 174 731 . . 109 452 1096 770 943 746 1135 . . . . . 157 128 220 164 607 250 35 189 590 1100 499 Average 865 | 7 606 515 1041 989 . 227 597 1400 1023 1407 1051 1495 1260 . . . . 83 173 243 234 611 680 243 262 564 1236 1330 1144 Maximum Alert Level 5 | . 3 2 5 4 . 1 3 5 4 5 4 5 5 . . . . 1 1 2 1 4 3 1 2 3 5 4 5 Low Security (%) 8 | 100 15 . 6 . . 42 2 . . . . . . . . . . 71 82 47 . 11 . 2 22 . . . . Level 1 16 | . 13 27 7 . . 57 9 . . . . . . . . . . 29 17 45 100 31 . 97 74 19 . . . Level 2 16 | . 23 72 15 . . . 48 11 . . . . . . . . . . . 7 . 17 44 . 2 56 5 . 18 Level 3 27 | . 47 . 19 95 . . 40 25 71 26 57 22 37 . . . . . . . . 23 55 . . 24 37 . 20 Level 4 20 | . . . 33 4 . . . 19 28 43 42 36 47 . . . . . . . . 15 . . . . 35 100 45 Level 5 10 | . . . 17 . . . . 43 . 29 . 41 15 . . . . . . . . . . . . . 4 . 15 High Security . | . . . . . . . . . . . . . . . . . . . . . . . . . . . 16 . . Max Security . | . . . . . . . . . . . . . . . . . . . . . . . . . . . . . . Sterilizations 1 | . . . 1 . . . . . . . . . . . . . . . . . . . . . . . . . . Squads Dispatched 97 | . 8 1 13 1 . . 10 . 3 . . . 11 . . . . . . 9 . 5 1 . 5 8 4 . 18 Investigation 38 | . 7 1 8 1 . . 3 . 1 . . . 3 . . . . . . 2 . 1 1 . 1 6 . . 3 Extermination 8 | . . . . . . . . . . . . . 1 . . . . . . 1 . 1 . . 2 . . . 3 Reinforcement 20 | . 1 . . . . . 2 . 1 . . . 3 . . . . . . 2 . 2 . . 2 1 . . 6 Assault 25 | . . . 5 . . . 2 . 1 . . . 4 . . . . . . 1 . 1 . . . 1 4 . 6 Garrison 6 | . . . . . . . 3 . . . . . . . . . . . . 3 . . . . . . . . . Intercept . | . . . . . . . . . . . . . . . . . . . . . . . . . . . . . . Searches Triggered . | . . . . . . . . . . . . . . . . . . . . . . . . . . . . . . Construction Impeded 1 | . . . . . . . . . . . . . . . . . . . . . . . . . 1 . . . . Haulers Reinforced 3 | . . . . . . . . . . . . . . . . . . . . 1 . 2 . . . . . . . Active Scanning Responses . | . . . . . . . . . . . . . . . . . . . . . . . . . . . . . . Cargo Convoy Interrupts 1 | . . . . . . . . . . . . . . . . . . . . . . 1 . . . . . . . Stealth | -11 -10 -10 -9 -9 -9 -8 -8 -8 -8 -8 -8 -8 -7 -7 -7 -7 -6 -6 -6 -5 -5 -5 -4 -4 -4 -4 -4 -4 -4 --------- Run | Jun Mat Min Mat Min Exi Min Mat Gar Mat Gar Mat Gar Fac Low Low Zio Pro Fac DSF Fac Was Fac Fac Was Fac Ext Cet Arc Hub Distress Signals 14 | . 1 . 5 . . . . . 2 . . . 1 . . . . . . . . . . . 1 1 2 . 1 Communications Jammed 290 | . . . . . . . 19 . 17 . . . 36 . . . . . 1 88 . 65 . . 1 28 33 1 1 Distress Signals 285 | . . . . . . . 19 . 17 . . . 34 . . . . . . 88 . 63 . . 1 28 33 1 1 Times Spotted 682 | . 29 2 80 23 22 15 43 29 26 25 6 26 36 13 17 . 10 1 4 26 6 52 1 . 12 51 42 7 78 Peak Tracking Total 16 | . 4 2 11 4 10 4 6 3 4 4 2 3 7 3 4 . 5 1 3 6 2 11 1 . 3 7 16 2 8 Tactical Retreats 21 | . 5 . 5 1 3 . 1 1 . 1 1 . . . . . . . . . . . . . . 1 . . 2 Traps | -11 -10 -10 -9 -9 -9 -8 -8 -8 -8 -8 -8 -8 -7 -7 -7 -7 -6 -6 -6 -5 -5 -5 -4 -4 -4 -4 -4 -4 -4 ------- Run | Jun Mat Min Mat Min Exi Min Mat Gar Mat Gar Mat Gar Fac Low Low Zio Pro Fac DSF Fac Was Fac Fac Was Fac Ext Cet Arc Hub Traps Triggered 33 | . 1 . 1 . . . 3 8 . 7 . 6 . . . . . . 4 1 . . 1 . . 1 . . . Indirectly . | . . . . . . . . . . . . . . . . . . . . . . . . . . . . . . Trap Hack Attempts . | . . . . . . . . . . . . . . . . . . . . . . . . . . . . . . Triggered . | . . . . . . . . . . . . . . . . . . . . . . . . . . . . . . Disarmed . | . . . . . . . . . . . . . . . . . . . . . . . . . . . . . . Reprogrammed . | . . . . . . . . . . . . . . . . . . . . . . . . . . . . . . Reused . | . . . . . . . . . . . . . . . . . . . . . . . . . . . . . . Traps Extracted . | . . . . . . . . . . . . . . . . . . . . . . . . . . . . . . Installed . | . . . . . . . . . . . . . . . . . . . . . . . . . . . . . . Triggered 2 | . . . 1 1 . . . . . . . . . . . . . . . . . . . . . . . . . Exploded 3 | . . . . . 3 . . . . . . . . . . . . . . . . . . . . . . . . Machines | -11 -10 -10 -9 -9 -9 -8 -8 -8 -8 -8 -8 -8 -7 -7 -7 -7 -6 -6 -6 -5 -5 -5 -4 -4 -4 -4 -4 -4 -4 ---------- Run | Jun Mat Min Mat Min Exi Min Mat Gar Mat Gar Mat Gar Fac Low Low Zio Pro Fac DSF Fac Was Fac Fac Was Fac Ext Cet Arc Hub Machines Disabled 247 | . 20 5 36 2 12 2 14 18 9 13 2 15 31 . 1 . . 8 . 2 . 7 1 . 14 6 1 3 25 Max in Single Turn 5 | . 2 2 2 1 2 1 2 2 2 2 1 2 5 . 1 . . 4 . 1 . 2 1 . 5 1 . 1 4 Garrison Access 1 | . . . . . . . . . . . . . . . . . . . . 1 . . . . . . . . . Garrison Relay 17 | . . . . . . . . 6 . 5 . 6 . . . . . . . . . . . . . . . . . Network Hub 1 | . . . . . . . . . . . . . . . . . . . . . . . . . . . . . 1 Machines Repaired 3 | . 1 . 2 . . . . . . . . . . . . . . . . . . . . . . . . . . Machines Sabotaged . | . . . . . . . . . . . . . . . . . . . . . . . . . . . . . . Overloaded Fab Kills . | . . . . . . . . . . . . . . . . . . . . . . . . . . . . . . Hacking | -11 -10 -10 -9 -9 -9 -8 -8 -8 -8 -8 -8 -8 -7 -7 -7 -7 -6 -6 -6 -5 -5 -5 -4 -4 -4 -4 -4 -4 -4 --------- Run | Jun Mat Min Mat Min Exi Min Mat Gar Mat Gar Mat Gar Fac Low Low Zio Pro Fac DSF Fac Was Fac Fac Was Fac Ext Cet Arc Hub Machines Accessed 104 | . 9 3 12 1 . . 9 3 9 3 2 4 9 1 1 1 . 3 . 2 . 1 1 . 5 16 2 . 7 Terminals 79 | . 7 1 9 . . . 6 3 7 3 1 4 7 . . . . 2 . 1 . 1 . . 3 15 2 . 7 Fabricators 1 | . . . . . . . . . . . . . 1 . . . . . . . . . . . . . . . . Repair Stations 1 | . . . 1 . . . . . . . . . . . . . . . . . . . . . . . . . . Recycling Units 8 | . 2 . 1 . . . 1 . . . . . 1 . . . . . . . . . 1 . 1 1 . . . Scanalyzers 5 | . . . 1 . . . 1 . 1 . . . . . . . . 1 . . . . . . 1 . . . . Garrison Access 4 | . . . . . . . 1 . 1 . 1 . . . . . . . . 1 . . . . . . . . . Total Hacks 426 | . 48 6 57 1 . . 41 12 63 10 5 12 31 1 1 6 . 5 . 8 . 2 3 . 11 40 7 . 56 Successful 247 | . 31 4 38 1 . . 26 3 35 4 2 5 16 1 1 6 . 4 . . . . 1 . 8 23 5 . 33 Failed 175 | . 17 2 18 . . . 14 9 27 6 3 7 15 . . . . 1 . 8 . 2 2 . 3 16 2 . 23 Catastrophic 23 | . 2 . 1 . . . 2 2 . 1 2 1 2 . . . . . . 1 . 2 . . 1 4 . . 2 Database Lockouts 4 | . . . 1 . . . 1 . 1 . . . . . . . . . . . . . . . . 1 . . . Manual 186 | . 30 4 17 . 1 . 24 5 26 7 3 4 10 . . . . . . 5 . . . . . 16 2 . 32 Terminals 350 | . 40 4 47 . . . 24 12 58 10 4 12 25 . . . . 3 . 5 . 2 . . 5 36 7 . 56 Fabricators 3 | . . . . . . . . . . . . . 3 . . . . . . . . . . . . . . . . Repair Stations 5 | . . . 5 . . . . . . . . . . . . . . . . . . . . . . . . . . Recycling Units 27 | . 8 . 3 . . . 5 . . . . . 3 . . . . . . . . . 3 . 1 4 . . . Scanalyzers 24 | . . . 2 . . . 11 . 4 . . . . . . . . 2 . . . . . . 5 . . . . Garrison Access 6 | . . . . . . . 1 . 1 . 1 . . . . . . . . 3 . . . . . . . . . Terminal Hacks 167 | . 17 3 22 1 . . 7 2 29 3 1 4 11 1 1 6 . 2 . . . . . . 3 18 5 . 31 Record 14 | . . . 4 . . . . . 5 . . . . . . . . . . . . . . . . . 4 . 1 Part Schematic 9 | . . . . . . . . . 1 . . . 1 . . 6 . . . . . . . . . 1 . . . Robot Schematic 1 | . . . . . . . . . . . . . . . . . . . . . . . . . . . . . 1 Robot Analysis 33 | . 7 . 2 . . . 1 . 7 . . . . . . . . . . . . . . . . 2 . . 14 Prototype ID Bank 19 | . 5 . 2 . . . 1 . 4 . . . 1 . . . . . . . . . . . . 2 . . 4 Open Door 16 | . . 2 . 1 . . . . . . . 1 . 1 1 . . . . . . . . . . 9 1 . . Open DSF 2 | . . . . . . . . . . . . . 1 . . . . 1 . . . . . . . . . . . Level Access Points 2 | . 1 . . . . . . . 1 . . . . . . . . . . . . . . . . . . . . Branch Access Points 6 | . . . 1 . . . . . 1 . . . 1 . . . . . . . . . . . 1 1 . . 1 Emergency Access Points 7 | . . . . . . . . 1 1 1 . 1 1 . . . . . . . . . . . . . . . 2 Terminal Index 2 | . . . 1 . . . . . . . . . . . . . . 1 . . . . . . . . . . . Fabricator Index 2 | . . . . . . . . . . . . . . . . . . . . . . . . . . 1 . . 1 Scanalyzer Index 2 | . 1 . 1 . . . . . . . . . . . . . . . . . . . . . . . . . . Garrison Index 4 | . . . . . . . 1 . 1 . . . 1 . . . . . . . . . . . 1 . . . . Alert Level 1 | . . . . . . . . . . . . . . . . . . . . . . . . . . . . . 1 Unreport Threat 17 | . . . 3 . . . 4 . 4 . . . 3 . . . . . . . . . . . . . . . 3 Locate Traps 1 | . . 1 . . . . . . . . . . . . . . . . . . . . . . . . . . . Reprogram Traps 1 | . 1 . . . . . . . . . . . . . . . . . . . . . . . . . . . . Dispatch Records 2 | . . . 1 . . . . . 1 . . . . . . . . . . . . . . . . . . . . Maintenance Status 1 | . . . 1 . . . . . . . . . . . . . . . . . . . . . . . . . . Security Status 1 | . . . 1 . . . . . . . . . . . . . . . . . . . . . . . . . . Surveillance Status 2 | . . . 1 . . . . . 1 . . . . . . . . . . . . . . . . . . . . Investigation Status 1 | . . . 1 . . . . . . . . . . . . . . . . . . . . . . . . . . Recall Investigation 1 | . . . 1 . . . . . . . . . . . . . . . . . . . . . . . . . . Hauler Manifests 1 | . . . 1 . . . . . . . . . . . . . . . . . . . . . . . . . . Registered Components 3 | . 1 . 1 . . . . . 1 . . . . . . . . . . . . . . . . . . . . Registered Prototypes 2 | . . . . . . . . . . . . . . . . . . . . . . . . . . 1 . . 1 Zone Layout 9 | . 1 . . . . . . . 1 . 1 . 2 . . . . . . . . . . . 1 1 . . 2 Garrison Registry 3 | . . . . . . . . 1 . 1 . 1 . . . . . . . . . . . . . . . . . Patrol Navigation 2 | . . . . . . . . . . 1 . 1 . . . . . . . . . . . . . . . . . Fabricator Hacks . | . . . . . . . . . . . . . . . . . . . . . . . . . . . . . . Repair Station Hacks 4 | . . . 4 . . . . . . . . . . . . . . . . . . . . . . . . . . Scan Component 2 | . . . 2 . . . . . . . . . . . . . . . . . . . . . . . . . . Repair 2 | . . . 2 . . . . . . . . . . . . . . . . . . . . . . . . . . Recycling Unit Hacks 4 | . 1 . . . . . 1 . . . . . . . . . . . . . . . 1 . 1 . . . . Report Inventory 3 | . 1 . . . . . . . . . . . . . . . . . . . . . 1 . 1 . . . . Retrieve Components 1 | . . . . . . . 1 . . . . . . . . . . . . . . . . . . . . . . Scanalyzer 23 | . . . 2 . . . 11 . 4 . . . . . . . . 2 . . . . . . 4 . . . . Insert Component 10 | . . . 1 . . . 4 . 2 . . . . . . . . 1 . . . . . . 2 . . . . Analyze 13 | . . . 1 . . . 7 . 2 . . . . . . . . 1 . . . . . . 2 . . . . Garrison Access Hacks 3 | . . . . . . . 1 . 1 . 1 . . . . . . . . . . . . . . . . . . Unlock Access 3 | . . . . . . . 1 . 1 . 1 . . . . . . . . . . . . . . . . . . Unauthorized Hacks 46 | . 13 1 10 . . . 6 1 1 1 . 1 5 . . . . . . . . . . . . 5 . . 2 Terminals 32 | . 8 1 9 . . . 4 1 1 1 . 1 1 . . . . . . . . . . . . 3 . . 2 Botnet 19 | . 5 . 3 . . . 4 . 1 . . . 1 . . . . . . . . . . . . 3 . . 2 Sabotage 5 | . 1 . 4 . . . . . . . . . . . . . . . . . . . . . . . . . . Search 5 | . 2 1 2 . . . . . . . . . . . . . . . . . . . . . . . . . . Override 3 | . . . . . . . . 1 . 1 . 1 . . . . . . . . . . . . . . . . . Fabricators 1 | . . . . . . . . . . . . . 1 . . . . . . . . . . . . . . . . Fabnet 1 | . . . . . . . . . . . . . 1 . . . . . . . . . . . . . . . . Repair Stations . | . . . . . . . . . . . . . . . . . . . . . . . . . . . . . . Recycling Units 13 | . 5 . 1 . . . 2 . . . . . 3 . . . . . . . . . . . . 2 . . . Monitor 1 | . 1 . . . . . . . . . . . . . . . . . . . . . . . . . . . . Reject 4 | . 1 . . . . . 1 . . . . . 1 . . . . . . . . . . . . 1 . . . Mask 4 | . 1 . . . . . 1 . . . . . 1 . . . . . . . . . . . . 1 . . . Tunnel 4 | . 2 . 1 . . . . . . . . . 1 . . . . . . . . . . . . . . . . Scanalyzers . | . . . . . . . . . . . . . . . . . . . . . . . . . . . . . . Garrison Access . | . . . . . . . . . . . . . . . . . . . . . . . . . . . . . . Data Cores Recovered 5 | . 1 . 1 . . . 1 . . . . . . . . . . . . . . 1 . . . 1 . . . Used 2 | . 1 . . . . . . . . . . . . . . . . . . . . . . . . 1 . . . Hacking Detections 78 | . 8 . 10 . . . 8 3 7 3 1 3 7 . . . . 2 . 2 . 1 1 . 3 11 1 . 7 Full Trace Events 27 | . 4 . 1 . . . 4 2 1 . . . 2 . . . . . . 2 . 1 1 . 1 5 . . 3 Feedback Events 1 | . . . . . . . 1 . . . . . . . . . . . . . . . . . . . . . . Corruption 1 | . . . . . . . 1 . . . . . . . . . . . . . . . . . . . . . . Feedback Blocked . | . . . . . . . . . . . . . . . . . . . . . . . . . . . . . . Robot Schematics Acquired 5 | . . . . . . . . . . . . . . . . 4 . . . . . . . . . . . . 1 Robots Built . | . . . . . . . . . . . . . . . . . . . . . . . . . . . . . . Authchips . | . . . . . . . . . . . . . . . . . . . . . . . . . . . . . . Time . | . . . . . . . . . . . . . . . . . . . . . . . . . . . . . . Total Robot Build Rating . | . . . . . . . . . . . . . . . . . . . . . . . . . . . . . . Part Schematics Acquired 33 | . . . 1 . . . 3 . 3 . . . 1 . . 21 . 1 . . . . . . 2 1 . . . Parts Built . | . . . . . . . . . . . . . . . . . . . . . . . . . . . . . . Authchips . | . . . . . . . . . . . . . . . . . . . . . . . . . . . . . . Time . | . . . . . . . . . . . . . . . . . . . . . . . . . . . . . . Total Part Build Rating . | . . . . . . . . . . . . . . . . . . . . . . . . . . . . . . Parts Repaired 2 | . . . 2 . . . . . . . . . . . . . . . . . . . . . . . . . . Time 136 | . . . 136 . . . . . . . . . . . . . . . . . . . . . . . . . . Parts Recycled . | . . . . . . . . . . . . . . . . . . . . . . . . . . . . . . Recycled Matter . | . . . . . . . . . . . . . . . . . . . . . . . . . . . . . . Retrieved Matter . | . . . . . . . . . . . . . . . . . . . . . . . . . . . . . . Retrieved Components 10 | . . . . . . . 10 . . . . . . . . . . . . . . . . . . . . . . Parts Scanalyzed 10 | . . . 1 . . . 4 . 2 . . . . . . . . 1 . . . . . . 2 . . . . Part Schematics Acquired 9 | . . . 1 . . . 3 . 2 . . . . . . . . 1 . . . . . . 2 . . . . Parts Damaged 1 | . . . 1 . . . . . . . . . . . . . . . . . . . . . . . . . . Bothacking | -11 -10 -10 -9 -9 -9 -8 -8 -8 -8 -8 -8 -8 -7 -7 -7 -7 -6 -6 -6 -5 -5 -5 -4 -4 -4 -4 -4 -4 -4 ------------ Run | Jun Mat Min Mat Min Exi Min Mat Gar Mat Gar Mat Gar Fac Low Low Zio Pro Fac DSF Fac Was Fac Fac Was Fac Ext Cet Arc Hub Used RIF Installer . | . . . . . . . . . . . . . . . . . . . . . . . . . . . . . . Robots Hacked 6 | . . . . 2 4 . . . . . . . . . . . . . . . . . . . . . . . . Non-combat 5 | . . . . 2 3 . . . . . . . . . . . . . . . . . . . . . . . . Combat 1 | . . . . . 1 . . . . . . . . . . . . . . . . . . . . . . . . Robot Hacks Applied 6 | . . . . 2 4 . . . . . . . . . . . . . . . . . . . . . . . . parse_system 6 | . . . . 2 4 . . . . . . . . . . . . . . . . . . . . . . . . Relay Couplers Released 33 | . . . . . . . . 10 . 9 . 10 2 . . . . . . 1 . . . . 1 . . . . Machine Destruction 30 | . . . . . . . . 10 . 9 . 10 . . . . . . . 1 . . . . . . . . . Programmers 3 | . . . . . . . . . . . . . 2 . . . . . . . . . . . 1 . . . . Fabnet Peak Effective % 3 | . . . . . . . . . . . . . . . . . 3 3 3 1 1 1 . . . . . . . Robots Rewired 22 | . . . . . . . . 4 . . . 2 . . . . . . . . . . 1 . . 15 . . . Allies Hacked 2 | . . . . . . . . . . . . . . . . . . . . . . . . . 2 . . . . Hacks Repelled . | . . . . . . . . . . . . . . . . . . . . . . . . . . . . . . Allies | -11 -10 -10 -9 -9 -9 -8 -8 -8 -8 -8 -8 -8 -7 -7 -7 -7 -6 -6 -6 -5 -5 -5 -4 -4 -4 -4 -4 -4 -4 -------- Run | Jun Mat Min Mat Min Exi Min Mat Gar Mat Gar Mat Gar Fac Low Low Zio Pro Fac DSF Fac Was Fac Fac Was Fac Ext Cet Arc Hub Total Allies 72 | . . 4 . 2 . . . 6 . 2 . 2 . . . 4 . . . . . . 1 20 . 26 5 . . Largest Group 21 | . . 4 4 2 . . . 5 4 2 2 2 2 . . 4 4 4 3 2 . . 1 21 21 7 9 6 5 Highest-Rated Group 780 | . . 71 71 42 . . . 99 68 62 62 70 70 . . 126 126 126 84 56 . . 49 741 741 438 780 620 461 Highest-Rated Ally 159 | . . 31 31 31 . . . 31 20 31 31 39 39 . . 39 39 39 28 28 . . 49 50 50 159 159 159 96 Total Orders 11 | . . 2 1 . . . . . 1 . . . 1 . . . . . . . . . . . 1 . 3 2 . STAY 5 | . . 1 . . . . . . . . . . . . . . . . . . . . . . 1 . 2 1 . ROAM 3 | . . . 1 . . . . . 1 . . . 1 . . . . . . . . . . . . . . . . FOLLOW 3 | . . 1 . . . . . . . . . . . . . . . . . . . . . . . . 1 1 . Ally Attacks 531 | . . 3 38 6 . . . 38 1 2 7 2 8 . . . 21 2 5 15 . . . . 74 128 155 12 14 Total Damage 14584 | . . 54 375 43 . . . 395 . 42 82 21 283 . . . 327 50 77 179 . . . . 1526 3828 6416 467 419 Kills 88 | . . 1 7 2 . . . 6 . . . . 3 . . . 3 . . 2 . . . . 6 19 35 1 3 Allies Corrupted 1 | . . . . . . . . . . . . . . . . . . . . . . . . . . 1 . . . Allies Melted . | . . . . . . . . . . . . . . . . . . . . . . . . . . . . . . Intel | -11 -10 -10 -9 -9 -9 -8 -8 -8 -8 -8 -8 -8 -7 -7 -7 -7 -6 -6 -6 -5 -5 -5 -4 -4 -4 -4 -4 -4 -4 ------- Run | Jun Mat Min Mat Min Exi Min Mat Gar Mat Gar Mat Gar Fac Low Low Zio Pro Fac DSF Fac Was Fac Fac Was Fac Ext Cet Arc Hub Robot Analysis Total 33 | . 7 . 2 . . . 1 . 7 . . . . . . . . . . . . . . . . 2 . . 14 Derelict Logs Recovered 10 | . . 2 . 2 . . . . . . . . . 2 2 1 1 . . . . . . . . . . . . Drone Launches . | . . . . . . . . . . . . . . . . . . . . . . . . . . . . . . Drone Recoveries . | . . . . . . . . . . . . . . . . . . . . . . . . . . . . . . Decoded 0b10 Intel 24 | . . . . . . . . . . . . . . . . . . . . 21 3 . . . . . . . . Traps 12 | . . . . . . . . . . . . . . . . . . . . 12 . . . . . . . . . Items 9 | . . . . . . . . . . . . . . . . . . . . 6 3 . . . . . . . . Garrisons 1 | . . . . . . . . . . . . . . . . . . . . 1 . . . . . . . . . Patrols 1 | . . . . . . . . . . . . . . . . . . . . 1 . . . . . . . . . Guards 1 | . . . . . . . . . . . . . . . . . . . . 1 . . . . . . . . . Exploration | -11 -10 -10 -9 -9 -9 -8 -8 -8 -8 -8 -8 -8 -7 -7 -7 -7 -6 -6 -6 -5 -5 -5 -4 -4 -4 -4 -4 -4 -4 ------------- Run | Jun Mat Min Mat Min Exi Min Mat Gar Mat Gar Mat Gar Fac Low Low Zio Pro Fac DSF Fac Was Fac Fac Was Fac Ext Cet Arc Hub Turns Passed 28567 | 94 1146 576 2138 903 1667 715 1607 1324 739 1026 216 1261 1279 1238 1066 1785 1347 200 151 901 322 1150 172 412 787 1729 742 331 1543 Spaces Moved 14954 | 30 765 473 1185 687 1191 439 868 775 415 550 133 741 669 750 587 1083 891 124 64 225 162 402 95 194 305 495 240 62 354 Core 9 | . . . . . . . . . . . . . . . . 9 . . . . . . . . . . . . . Treads 1291 | . . . . . . . . . . . . . . . . . . . . . . . . . 140 495 240 62 354 Legs 1 | 1 . . . . . . . . . . . . . . . . . . . . . . . . . . . . . Wheels 13652 | 29 765 473 1185 687 1191 439 868 775 415 550 133 741 669 750 587 1074 891 124 64 225 162 402 95 193 165 . . . . Hover 1 | . . . . . . . . . . . . . . . . . . . . . . . . 1 . . . . . Flight . | . . . . . . . . . . . . . . . . . . . . . . . . . . . . . . Fastest Speed 90 | 100 90 90 90 90 115 115 115 115 130 115 130 130 130 130 130 145 145 145 130 130 130 145 145 145 175 237 237 245 245 Average Speed 138 | 100 95 106 108 100 117 127 118 115 130 129 130 130 139 144 144 158 145 145 144 138 141 145 145 162 207 237 243 245 245 Slowest Speed 1500 | 120 105 120 120 115 130 130 130 130 130 130 130 130 145 145 145 1500 145 145 145 145 145 145 145 800 250 237 245 245 245 Overloaded Moves . | . . . . . . . . . . . . . . . . . . . . . . . . . . . . . . Propulsion Burnouts . | . . . . . . . . . . . . . . . . . . . . . . . . . . . . . . Robots Hopped . | . . . . . . . . . . . . . . . . . . . . . . . . . . . . . . Cave-ins Triggered . | . . . . . . . . . . . . . . . . . . . . . . . . . . . . . . Exploration Rate (%) 62 | 3 94 98 80 97 87 78 84 89 43 89 17 78 29 90 72 84 97 6 79 10 84 8 5 85 10 67 80 79 39 Regions Visited 29 Branch Regions 12 Pre-discovered Areas 11 | . 2 1 1 1 . . . . . . . . 1 3 . 2 . . . . . . . . . . . . . Known Exits Taken 9 | . . 1 1 . . . 1 . 1 . 1 . 1 . . . . 1 . . . . . . 1 1 . . . Unknown Exits Taken 12 | 1 1 . . 1 1 1 . . . . . . . 1 1 1 1 . . . . 1 . . . . 1 1 . Scrap Searched 14 | . . 2 . 1 . . . . . . . . . 3 4 2 2 . . . . . . . . . . . . Spaces Dug 83 | . . . . . . . 6 14 9 3 10 6 . . . . . . . 4 . 26 1 . . . . . 4 Terrain Destroyed 1856 | . 250 20 318 20 9 39 131 58 102 71 25 52 262 30 27 . . 59 . 5 . 86 26 . 47 8 3 1 207 Melee . | . . . . . . . . . . . . . . . . . . . . . . . . . . . . . . Projectile 537 | . . . . 8 9 39 87 56 57 66 25 49 32 27 25 . . 1 . 4 . 9 2 . 3 8 3 1 26 AOE 1293 | . 250 20 318 12 . . 43 . 45 . . . 227 . . . . 58 . . . 74 23 . 42 . . . 181 Terrain Rammed . | . . . . . . . . . . . . . . . . . . . . . . . . . . . . . . Walls Destroyed . | . . . . . . . . . . . . . . . . . . . . . . . . . . . . . . Machines Disabled . | . . . . . . . . . . . . . . . . . . . . . . . . . . . . . . Actions | -11 -10 -10 -9 -9 -9 -8 -8 -8 -8 -8 -8 -8 -7 -7 -7 -7 -6 -6 -6 -5 -5 -5 -4 -4 -4 -4 -4 -4 -4 --------- Run | Jun Mat Min Mat Min Exi Min Mat Gar Mat Gar Mat Gar Fac Low Low Zio Pro Fac DSF Fac Was Fac Fac Was Fac Ext Cet Arc Hub Total 20930 | 70 1064 527 1817 839 1409 557 1355 1098 570 792 159 967 937 869 767 1151 930 138 107 747 236 826 116 291 405 895 361 187 743 Wait 2976 | 5 175 33 337 63 96 32 342 123 68 87 7 71 165 64 128 30 14 9 2 439 34 209 6 67 43 74 39 91 123 Move 14929 | 29 764 472 1184 686 1190 438 868 774 414 549 133 740 668 749 586 1082 890 123 63 225 161 401 95 193 304 494 239 61 354 Hop . | . . . . . . . . . . . . . . . . . . . . . . . . . . . . . . Pick Up 96 | 1 3 4 7 2 16 5 3 2 3 . . 1 1 2 . 7 . . . 1 2 8 . 5 4 4 5 3 7 Fast Attach 127 | 6 7 4 11 6 13 6 4 2 1 4 . 2 6 1 1 8 . . 1 1 6 20 . 5 . . 5 . 7 Attach 34 | . 1 1 2 . 1 4 2 1 . . . . 1 1 . 3 . . . 3 . 2 . 2 2 2 2 1 3 Detach 29 | . . . 1 . 6 1 4 . . 1 . . 1 . . 3 . . . 1 3 3 . 1 . 1 . . 3 Swap 38 | . 1 . 2 1 . 1 6 1 1 . . 1 . . . . . . . 2 2 2 1 2 1 1 5 . 8 Drop 184 | 2 9 5 13 9 27 8 2 2 3 4 . 3 5 1 . 13 . . 1 2 7 25 1 12 3 1 11 2 13 Fire 1401 | 27 84 8 181 43 44 33 86 99 46 66 16 69 71 38 36 1 8 6 8 44 10 110 11 1 31 69 16 19 120 Melee 7 | . . . . 2 4 . . . . . . . . . . . . . . 1 . . . . . . . . . Ram . | . . . . . . . . . . . . . . . . . . . . . . . . . . . . . . Kick . | . . . . . . . . . . . . . . . . . . . . . . . . . . . . . . Crush . | . . . . . . . . . . . . . . . . . . . . . . . . . . . . . . Escape Stasis 186 | . . . . . . . . 56 . 56 . 40 . . . . . . 32 . . . . . . 2 . . . Rewire 120 | . . . . . . . . 7 . . . 14 . . . . . . . . . . 2 3 . 94 . . . Trap . | . . . . . . . . . . . . . . . . . . . . . . . . . . . . . . Miscellaneous 803 | . 20 . 79 27 12 29 38 31 34 25 3 26 19 13 16 4 18 . . 28 11 46 . . 17 153 39 10 105 Route ------- -11/Junkyard -10/Materials (discovered 4 exits: *Mat x3 / *Min) -10/Mines (discovered 2 exits: *Mat x2) -9/Materials (discovered 4 exits: *Mat x3 / *Min) -9/Mines (discovered 3 exits: *Mat x2 / *Exi) -9/Exiles -8/Mines (discovered 2 exits: *Mat x2) -8/Materials (discovered 5 exits: *Fac x3 / *Sto / Gar) -8/Garrison (discovered 3 exits: *Mat x3) -8/Materials (discovered 5 exits: *Fac x3 / *Sto / Gar) -8/Garrison (discovered 3 exits: *Mat x3) -8/Materials -8/Garrison (discovered 3 exits: *Fac x3) -7/Factory (discovered 2 exits: *Low x2) -7/Lower Caves -7/Lower Caves (discovered 2 exits: *Fac / *Zio) -7/Zion -6/Proximity Caves -6/Factory (discovered 3 exits: Fac / Low / DSF) -6/DSF -5/Factory -5/Waste -5/Factory -4/Factory -4/Waste -4/Factory (discovered 4 exits: Upp x2 / *Ext x2) -4/Extension (discovered 3 exits: [*Res x2] / *Cet) -4/Cetus (discovered 2 exits: [*Res] / *Arc) -4/Archives (discovered 2 exits: *Hub x2) -4/Hub_04(d) (discovered 2 exits: [*Res x2]) History --------- Turn | Location | Event 1 | -11/Junkyard | Upgraded with Utility slot (x3) 1 | -11/Junkyard | Discovered new exit (range 1) 95 | -11/Junkyard | Entered Materials 155 | -10/Materials | Discovered new exit (range 17) 315 | -10/Materials | Build established: Scavenger-Mutant 411 | -10/Materials | Reached level 2 459 | -10/Materials | Upgraded with Weapon slot (x1) 488 | -10/Materials | Discovered new exit (range 17) 698 | -10/Materials | Discovered new exit (range 9) 701 | -10/Materials | Identified exit to Materials 774 | -10/Materials | Reached level 3 780 | -10/Materials | Upgraded with Utility slot (x1) 1030 | -10/Materials | Reached level 4 1050 | -10/Materials | Build established: Mutant 1056 | -10/Materials | Upgraded with Weapon slot (x1) 1241 | -10/Materials | Entered Mines 1247 | -10/Mines | Met a Derelict bent on vengeance 1313 | -10/Mines | Reached level 5 1328 | -10/Mines | Discovered exit to Materials (range 9) 1438 | -10/Mines | Learned Materials emergency access door positions 1454 | -10/Mines | Assisted by bots powering up and referring to "LRC-V3" 1484 | -10/Mines | Met a Derelict who couldn't figure out how to use a Trap Extractor 1576 | -10/Mines | Received a Mining Laser from a helpful Derelict 1732 | -10/Mines | Upgraded with Utility slot (x1) 1749 | -10/Mines | Found the Drone Emporium 1756 | -10/Mines | Found Prototype Device 1787 | -10/Mines | Discovered exit to Materials (range 17) 1817 | -10/Mines | Entered Materials 1817 | -9/Materials | Accompanied by 4 allies 1818 | -9/Materials | Build established: Gunner 1819 | -9/Materials | Reached level 6 1901 | -9/Materials | Central database locked down 1901 | -9/Materials | Identified exit to Mines 2093 | -9/Materials | Reached level 7 2256 | -9/Materials | Build established: Mutant 2294 | -9/Materials | Upgraded with Propulsion slot (x1) 2324 | -9/Materials | Reached level 8 2327 | -9/Materials | Upgraded with Utility slot (x1) 2467 | -9/Materials | Discovered new exit (range 3) 2617 | -9/Materials | First assault squad dispatched 2624 | -9/Materials | Reached level 9 2631 | -9/Materials | Upgraded with Weapon slot (x1) 3068 | -9/Materials | Discovered new exit (range 9) 3173 | -9/Materials | Repaired Broken Enh. Autogun 3213 | -9/Materials | Build established: Tank 3234 | -9/Materials | Repaired Faulty Enh. Autogun 3363 | -9/Materials | Reached level 10 3498 | -9/Materials | Discovered new exit (range 9) 3548 | -9/Materials | Core integrity fell below 50% 3562 | -9/Materials | Core integrity fell below 20% 3578 | -9/Materials | Sterilization system engaged 3578 | -9/Materials | Non-combat units ordered to evacuate 3609 | -9/Materials | Destroyed 10 combat bots 3678 | -9/Materials | Combat units ordered to evacuate 3841 | -9/Materials | Build established: Mutant 3878 | -9/Materials | Ambient heat levels rising (+10) 3955 | -9/Materials | Entered Mines 4005 | -9/Mines | Met a Derelict shopkeep closing up shop 4062 | -9/Mines | Excavation squad dispatched 4062 | -9/Mines | A large section of the Mines collapsed 4090 | -9/Mines | Reached level 11 4199 | -9/Mines | Learned Materials emergency access door positions 4219 | -9/Mines | Discovered new exit (range 4) 4305 | -9/Mines | Build established: Gunner 4383 | -9/Mines | Received a Rocket Launcher from a helpful Derelict 4428 | -9/Mines | Upgraded with Weapon slot (x1) 4528 | -9/Mines | Learned location of 1 exit from Materials 4618 | -9/Mines | Discovered new exit (range 10) 4634 | -9/Mines | Learned location of Storage (-8) 4853 | -9/Mines | Deemed a non-threat by the Exiles lab entrance 4854 | -9/Mines | Discovered new exit (range 5) 4858 | -9/Mines | Entered Exiles 4860 | -9/Exiles | Identified Sensor Drone Bay 4891 | -9/Exiles | Met 8R-AWN 4911 | -9/Exiles | Met EX-HEX 4943 | -9/Exiles | Met EX-BIN 4956 | -9/Exiles | Aligned with FarCom system 4957 | -9/Exiles | Given EX-Vault access code 4983 | -9/Exiles | Opened EX-Vault 5000 | -9/Exiles | Warned to stay clear of 0b10 Research branches 5042 | -9/Exiles | Met EX-DEC 5158 | -9/Exiles | Build established: Mutant 5226 | -9/Exiles | Found Deploy-a-Sentry 5228 | -9/Exiles | Found Deploy-a-Sentry 5230 | -9/Exiles | Found Deploy-a-Sentry 5439 | -9/Exiles | Found Prototype Processor 5447 | -9/Exiles | Found Prototype Energy Gun 6003 | -9/Exiles | Attacked by the Exiles 6130 | -9/Exiles | Destroyed 8R-AWN 6133 | -9/Exiles | Found 8R-AWN's Boregun 6137 | -9/Exiles | Found 8R-AWN's Boregun 6145 | -9/Exiles | Found AS-neutralizer No. 17b 6158 | -9/Exiles | Found 8R-AWN's Armor/EX 6287 | -9/Exiles | Destroyed EX-DEC 6313 | -9/Exiles | Destroyed EX-BIN 6317 | -9/Exiles | Destroyed EX-HEX 6349 | -9/Exiles | Found Exp. Core Analyzer 6504 | -9/Exiles | Discovered new exit (range 15) 6525 | -9/Exiles | Left Exiles lab with Modified TNC 6525 | -9/Exiles | Entered Mines 6623 | -8/Mines | AD-0RF came to Exiles' defense 6643 | -8/Mines | Destroyed AD-0RF 6674 | -8/Mines | Found Prototype Device 6674 | -8/Mines | Identified Exp. Thermal Shield 6706 | -8/Mines | Reached level 12 6770 | -8/Mines | Identified Modified TNC 6803 | -8/Mines | Upgraded with Power slot (x1) 6822 | -8/Mines | Found Exp. Targeting Computer 6838 | -8/Mines | Build established: Scavenger-Gunner 6938 | -8/Mines | Discovered new exit (range 11) 7209 | -8/Mines | Discovered new exit (range 13) 7240 | -8/Mines | Entered Materials 7241 | -8/Materials | Identified exit to Factory 7281 | -8/Materials | Reached level 13 7957 | -8/Materials | Discovered new exit (range 10) 8040 | -8/Materials | First assault squad dispatched 8417 | -8/Materials | Discovered exit to Factory (range 17) 8426 | -8/Materials | Reached level 14 8512 | -8/Materials | Build established: Hacker-Gunner 8686 | -8/Materials | Discovered exit to Factory (range 8) 8788 | -8/Materials | Central database locked down 8847 | -8/Materials | Identified exit to Garrison 8847 | -8/Materials | Entered Garrison 8860 | -8/Garrison | Triggered checkpoint 8906 | -8/Garrison | Build established: Scavenger-Gunner 8908 | -8/Garrison | Triggered checkpoint 8995 | -8/Garrison | Garrison Relay disabled 9242 | -8/Garrison | Triggered checkpoint 9252 | -8/Garrison | Triggered checkpoint 9324 | -8/Garrison | Triggered checkpoint 9344 | -8/Garrison | Rescued a captive Derelict 9346 | -8/Garrison | Rescued a captive Derelict 9378 | -8/Garrison | Reached level 15 9380 | -8/Garrison | Garrison Relay disabled 9391 | -8/Garrison | Upgraded with Utility slot (x1) 9405 | -8/Garrison | Discovered new exit (range 8) 9490 | -8/Garrison | Triggered checkpoint 9544 | -8/Garrison | Triggered checkpoint 9601 | -8/Garrison | Identified exit to Materials 9601 | -8/Garrison | Triggered checkpoint 9830 | -8/Garrison | Build established: Scavenger-Mutant 9847 | -8/Garrison | Discovered exit to Materials (range 16) 9847 | -8/Garrison | Discovered exit to Materials (range 46) 9847 | -8/Garrison | Discovered exit to Materials (range 57) 9866 | -8/Garrison | Triggered checkpoint 9891 | -8/Garrison | Garrison Relay disabled 9894 | -8/Garrison | Garrison Relay disabled 9986 | -8/Garrison | Garrison Relay disabled 10069 | -8/Garrison | Spotted B-75 Beast 10078 | -8/Garrison | Allies destroyed B-75 Beast 10171 | -8/Garrison | Entered Materials 10171 | -8/Materials | Accompanied by 4 allies 10171 | -8/Materials | Discovered new exit (range 6) 10552 | -8/Materials | Identified exit to Storage 10571 | -8/Materials | First assault squad dispatched 10672 | -8/Materials | Build established: Hacker-Gunner 10728 | -8/Materials | Central database locked down 10752 | -8/Materials | Identified exit to Garrison 10910 | -8/Materials | Entered Garrison 10926 | -8/Garrison | Triggered checkpoint 10967 | -8/Garrison | Identified exit to Materials 10967 | -8/Garrison | Garrison Relay disabled 11270 | -8/Garrison | Reached level 16 11306 | -8/Garrison | Destroyed 10 combat bots 11334 | -8/Garrison | Triggered checkpoint 11385 | -8/Garrison | Garrison Relay disabled 11508 | -8/Garrison | Triggered checkpoint 11660 | -8/Garrison | Triggered checkpoint 11699 | -8/Garrison | Discovered exit to Materials (range 77) 11699 | -8/Garrison | Discovered exit to Materials (range 53) 11699 | -8/Garrison | Discovered exit to Materials (range 6) 11725 | -8/Garrison | Garrison Relay disabled 11747 | -8/Garrison | Rescued a captive Derelict 11748 | -8/Garrison | Rescued a captive Derelict 11841 | -8/Garrison | Triggered checkpoint 11856 | -8/Garrison | Garrison Relay disabled 11936 | -8/Garrison | Entered Materials 11936 | -8/Materials | Accompanied by 2 allies 12152 | -8/Materials | Identified exit to Garrison 12152 | -8/Materials | Entered Garrison 12237 | -8/Garrison | Garrison Relay disabled 12237 | -8/Garrison | Garrison Relay disabled 12238 | -8/Garrison | Triggered checkpoint 12263 | -8/Garrison | Garrison Relay disabled 12388 | -8/Garrison | Triggered checkpoint 12466 | -8/Garrison | Triggered checkpoint 12532 | -8/Garrison | Triggered checkpoint 12673 | -8/Garrison | Triggered checkpoint 12693 | -8/Garrison | Triggered checkpoint 12746 | -8/Garrison | Triggered checkpoint 12807 | -8/Garrison | Discovered exit to Factory (range 12) 12807 | -8/Garrison | Discovered exit to Factory (range 45) 12807 | -8/Garrison | Discovered exit to Factory (range 49) 12925 | -8/Garrison | Triggered checkpoint 13003 | -8/Garrison | Garrison Relay disabled 13153 | -8/Garrison | Spotted B-75 Beast 13161 | -8/Garrison | Destroyed B-75 Beast 13413 | -8/Garrison | Entered Factory 13413 | -7/Factory | Accompanied by 2 allies 13415 | -7/Factory | Reached level 17 13422 | -7/Factory | Upgraded with Utility slot (x1) 13502 | -7/Factory | Identified exit to Lower Caves 13813 | -7/Factory | First assault squad dispatched 14078 | -7/Factory | Destroyed 7 combat bots 14185 | -7/Factory | Build established: Scavenger-Gunner 14374 | -7/Factory | Destroyed 10 combat bots 14676 | -7/Factory | Reached level 18 14692 | -7/Factory | Entered Lower Caves 14698 | -7/Lower Caves | Met a Warlord Commander 14699 | -7/Lower Caves | Learned location of Warlord (-5) 14707 | -7/Lower Caves | Found Encrypted Comm Array 14708 | -7/Lower Caves | Upgraded with Utility slot (x1) 15769 | -7/Lower Caves | Discovered new exit (range 7) 15930 | -7/Lower Caves | Entered another Lower Caves area 15958 | -7/Lower Caves | Discovered new exit (range 5) 16078 | -7/Lower Caves | Attracted the attention of an 0b10 checkpoint 16186 | -7/Lower Caves | Learned location of 1 exit from Factory 16443 | -7/Lower Caves | Spotted B-75 Beast 16471 | -7/Lower Caves | Destroyed B-75 Beast 16510 | -7/Lower Caves | Encountered a Warlord checkpoint 16737 | -7/Lower Caves | Spotted VX-EZ6(f) 16737 | -7/Lower Caves | Spotted N6-PI2(f) 16738 | -7/Lower Caves | Encountered a Master Thief 16738 | -7/Lower Caves | Encountered a Master Thief 16738 | -7/Lower Caves | Spotted 0N-LPE(f) 16739 | -7/Lower Caves | Encountered a Master Thief 16739 | -7/Lower Caves | Spotted SD-YYB(f) 16740 | -7/Lower Caves | Encountered a Master Thief 16742 | -7/Lower Caves | Destroyed N6-PI2(f) 16742 | -7/Lower Caves | 8R-AWN's Boregun stolen by Master Thief 16743 | -7/Lower Caves | Enh. Autogun stolen by Master Thief 16744 | -7/Lower Caves | Destroyed VX-EZ6(f) 16748 | -7/Lower Caves | Destroyed 0N-LPE(f) 16778 | -7/Lower Caves | Discovered new exit (range 5) 16996 | -7/Lower Caves | Entered Zion 17039 | -7/Zion | Gained Derelict followers 17070 | -7/Zion | System corruption cleaned by Quarantine Array 17166 | -7/Zion | Acquired unknown access codes intercepted by a Zionite 17179 | -7/Zion | Discovered new exit (range 16) 17235 | -7/Zion | Found CR-A16's Pointy Stick 17268 | -7/Zion | Found Prototype Energy Gun 17627 | -7/Zion | Identified Storm Laser 17810 | -7/Zion | Learned Factory emergency access door positions 17967 | -7/Zion | Found Prototype Hackware 17967 | -7/Zion | Identified Exp. System Shield 17972 | -7/Zion | Found Prototype Processor 17972 | -7/Zion | Identified Exp. Armor Integrity Analyzer 18120 | -7/Zion | Build established: Scavenger-Mutant 18781 | -7/Zion | Entered Proximity Caves 18781 | -6/Proximity Caves | Accompanied by 4 allies 18963 | -6/Proximity Caves | Learned location of 1 exit from Lower Caves 18976 | -6/Proximity Caves | Reached level 19 19059 | -6/Proximity Caves | Spotted B-75 Beast 19070 | -6/Proximity Caves | Destroyed B-75 Beast 19084 | -6/Proximity Caves | Build established: Scavenger-Gunner 19324 | -6/Proximity Caves | Discovered new exit (range 10) 20128 | -6/Proximity Caves | Entered Factory 20128 | -6/Factory | Accompanied by 4 allies 20129 | -6/Factory | Identified exit to Lower Caves 20130 | -6/Factory | Identified exit to Factory 20326 | -6/Factory | Identified exit to DSF 20328 | -6/Factory | Entered DSF 20328 | -6/DSF | Accompanied by 3 allies 20330 | -6/DSF | Reached level 20 20362 | -6/DSF | Additional patrols routed to DSF 20441 | -6/DSF | Discovered exit to Factory (range 14) 20479 | -6/DSF | Entered Factory 20479 | -5/Factory | Accompanied by 2 allies 20589 | -5/Factory | Reached level 21 20592 | -5/Factory | Upgraded with Utility slot (x1) 21078 | -5/Factory | Build established: Scavenger-Mutant 21338 | -5/Factory | Reached level 22 21344 | -5/Factory | Destroyed 10 combat bots 21380 | -5/Factory | Sucked down chute 21380 | -5/Factory | Entered Waste 21397 | -5/Waste | Spotted C-40 Crusher 21404 | -5/Waste | Destroyed C-40 Crusher 21434 | -5/Waste | Spotted C-40 Crusher 21442 | -5/Waste | Destroyed C-40 Crusher 21457 | -5/Waste | Found Damper Plating 21489 | -5/Waste | Build established: Scavenger-Gunner 21501 | -5/Waste | Spotted C-40 Crusher 21510 | -5/Waste | Destroyed C-40 Crusher 21521 | -5/Waste | Destroyed C-40 Crusher 21527 | -5/Waste | Destroyed C-40 Crusher 21588 | -5/Waste | Spotted C-40 Crusher 21595 | -5/Waste | Destroyed C-40 Crusher 21673 | -5/Waste | Discovered new exit (range 12) 21702 | -5/Waste | Entered Factory 22302 | -5/Factory | First assault squad dispatched 22374 | -5/Factory | Discovered new exit (range 17) 22464 | -5/Factory | Reached level 23 22622 | -5/Factory | Cargo convoy interrupted 22655 | -5/Factory | Core integrity fell below 50% 22663 | -5/Factory | Destroyed 9 combat bots 22668 | -5/Factory | Core integrity fell below 20% 22722 | -5/Factory | Found Prototype Device 22722 | -5/Factory | Identified Exp. Shield Generator 22852 | -5/Factory | Entered another Factory area 22853 | -4/Factory | Core integrity fell below 50% 22853 | -4/Factory | Core integrity fell below 20% 22854 | -4/Factory | Reached level 24 23024 | -4/Factory | Sucked down chute 23024 | -4/Factory | Entered Waste 23025 | -4/Waste | Joined by Warlord forces that had cleared the area 23040 | -4/Waste | 1 allies followed down the chute 23351 | -4/Waste | Discovered new exit (range 11) 23356 | -4/Waste | Upgraded with Propulsion slot (x1) 23378 | -4/Waste | Found Damper Plating 23436 | -4/Waste | Entered Factory 23436 | -4/Factory | Accompanied by 21 allies 23813 | -4/Factory | Reached level 25 23813 | -4/Factory | Upgraded with Propulsion slot (x1) 23907 | -4/Factory | Identified exit to Upper Caves 23907 | -4/Factory | Identified exit to Extension 24083 | -4/Factory | Spotted B-86 Titan 24102 | -4/Factory | Destroyed B-86 Titan 24223 | -4/Factory | Entered Extension 24223 | -4/Extension | Accompanied by 1 ally 24258 | -4/Extension | Disrupted transfer network 24334 | -4/Extension | Rescued a captive Derelict 24432 | -4/Extension | Identified exit to Cetus 24670 | -4/Extension | Rescued a captive Derelict 24671 | -4/Extension | Rescued a captive Derelict 24721 | -4/Extension | Reached level 26 24853 | -4/Extension | Rescued a captive Derelict 24906 | -4/Extension | Rescued a captive Derelict 24908 | -4/Extension | Spotted B-86 Titan 24920 | -4/Extension | Spotted B-86 Titan 24946 | -4/Extension | Destroyed B-86 Titan 24963 | -4/Extension | Destroyed B-86 Titan 25048 | -4/Extension | Build established: Scavenger-Tank 25093 | -4/Extension | Discovered new exit (range 3) 25271 | -4/Extension | Central database locked down 25502 | -4/Extension | Upgraded with Power slot (x1) 25559 | -4/Extension | Rescued a captive Derelict 25723 | -4/Extension | First assault squad dispatched 25733 | -4/Extension | Rescued A7 25838 | -4/Extension | Rescued a captive Derelict 25838 | -4/Extension | Rescued a captive Derelict 25873 | -4/Extension | Rescued a captive Derelict 25874 | -4/Extension | Rescued a captive Derelict 25929 | -4/Extension | Discovered new exit (range 10) 25952 | -4/Extension | Entered Cetus 25952 | -4/Cetus | Accompanied by 7 allies (A7) 25954 | -4/Cetus | Reached level 27 25957 | -4/Cetus | Acquired a Cetus Manufacturing Module code from A7 25980 | -4/Cetus | Spotted Cetus Guard 25980 | -4/Cetus | Spotted Cetus Guard 25984 | -4/Cetus | Destroyed Cetus Guard 25985 | -4/Cetus | Spotted Cetus Guard 25987 | -4/Cetus | Allies destroyed Cetus Guard 25987 | -4/Cetus | Spotted Cetus Guard 25993 | -4/Cetus | Destroyed Cetus Guard 25997 | -4/Cetus | Destroyed Cetus Guard 26072 | -4/Cetus | Upgraded with Weapon slot (x1) 26251 | -4/Cetus | Started Cetus Manufacturing Module 26267 | -4/Cetus | Escorted A7 to Cetus Mainframe 26276 | -4/Cetus | Manufactured an Enhanced Grunt 26294 | -4/Cetus | Discovered new exit (range 18) 26301 | -4/Cetus | Manufactured an Enhanced Grunt 26326 | -4/Cetus | Manufactured an Enhanced Grunt 26351 | -4/Cetus | Manufactured an Enhanced Grunt 26376 | -4/Cetus | Manufactured an Enhanced Grunt 26409 | -4/Cetus | Spotted Cetus Guard 26410 | -4/Cetus | Spotted Cetus Guard 26412 | -4/Cetus | Spotted Cetus Guard 26414 | -4/Cetus | Spotted Cetus Guard 26419 | -4/Cetus | Allies destroyed Cetus Guard 26421 | -4/Cetus | Destroyed Cetus Guard 26429 | -4/Cetus | Destroyed Cetus Guard 26432 | -4/Cetus | Allies destroyed Cetus Guard 26461 | -4/Cetus | Discovered new exit (range 17) 26485 | -4/Cetus | Met Revision 17 26571 | -4/Cetus | High security lockdown imminent 26651 | -4/Cetus | High security lockdown engaged 26693 | -4/Cetus | Reached level 28 26694 | -4/Cetus | Entered Archives 26694 | -4/Archives | Accompanied by 6 allies (A7) 26699 | -4/Archives | Received a hacking code to weaken MAIN.C 26718 | -4/Archives | Build established: Scavenger-Executioner 26819 | -4/Archives | Unable to access archive contents 26837 | -4/Archives | Discovered new exit (range 16) 26975 | -4/Archives | Discovered new exit (range 18) 27025 | -4/Archives | Entered Hub_04(d) 27025 | -4/Hub_04(d) | Accompanied by 5 allies 27227 | -4/Hub_04(d) | Discovered new exit (range 14) 27275 | -4/Hub_04(d) | First assault squad dispatched 27294 | -4/Hub_04(d) | Upgraded with Propulsion slot (x1) 27337 | -4/Hub_04(d) | Found Exp. Thermal Shield 27496 | -4/Hub_04(d) | Network Hub disabled 27511 | -4/Hub_04(d) | Spotted B-86 Titan 27512 | -4/Hub_04(d) | Spotted Lightning 27512 | -4/Hub_04(d) | Spotted Lightning 27524 | -4/Hub_04(d) | Spotted Lightning 27559 | -4/Hub_04(d) | Destroyed B-86 Titan 27572 | -4/Hub_04(d) | Destroyed Lightning 27580 | -4/Hub_04(d) | Destroyed Lightning 27593 | -4/Hub_04(d) | Destroyed Lightning 27643 | -4/Hub_04(d) | Destroyed 13 combat bots 27644 | -4/Hub_04(d) | Found Prototype Energy Cannon 27644 | -4/Hub_04(d) | Identified EMDS 27872 | -4/Hub_04(d) | Destroyed 11 combat bots 28025 | -4/Hub_04(d) | Discovered new exit (range 16) 28568 | -4/Hub_04(d) | Destroyed by G-73 Enforcer with Heavy Laser Last Messages --------------- 28552_ L-61 Swordsman destroyed. 28554_ Penetrated by Slug. 28554_ M-36 Artificer knocked back. 28555_ H-71 Marshal critical meltdown. 28555_ Kinecellerator melted. 28555_ Imp. Transmission Jammer melted. 28555_ Imp. Targeting Computer melted. 28557_ X-82 Rainmaker knocked back. 28557_ G-67 Veteran knocked back. 28557_ Slug penetrates Wall. 28557_ Penetrated by Slug. 28560_ G-67 Veteran destroyed. 28560_ M-36 Artificer repairs X-82 Rainmaker. 28561_ Slug penetrates Wall. 28562_ M-36 Artificer repairs M-36 Artificer. 28564_ X-82 Rainmaker destroyed. 28565_ Slug penetrates Wall. 28568_ M-36 Artificer repairs X-82 Rainmaker. 28568_ X-82 Rainmaker destroyed. 28568_ Slug penetrates Wall. Map ----- +----------------------------------------------------+ | ?????????????# "????# #???? """ #???????????? | | ?????????????# ######[#???? #???????????? | | ?????????????# "# ##+#### """ +???????????? | | ????????????## " % [=# # ??????? | | ??????????? ##"" " % % """ # ??????? | | ????????? % " " *%[# # ??????? | | ???????###?#####" """" " ![!# """ # ??????? | | ???##### ######## " " " =%# # ??????? | | ???# # #### [/# """ ######??????? | | ???# " # #??# %%%# #??# ??????? | | ???# # ##?# =!!=%=# """ #### ??????? | | ???# " " " " + ### =!! # + ? "??????? | | ???# # !"= =! ########### "??????? | | ???# % " " " # ### #?????????# ??????? | | ???# !%| [!# #?# #??######## ??????? | | ???# %| " "%# #?# #??# # ??????? | | ???# % =%+ #?# #??# # ??????? | | ???# " " " " # #?# """#??# # ??????? | | ???# # #?# !%T %#### ###??????? | | ???# ! ! !# #?# !%% +%!+ #????????? | | ???####+######### ### [=!/[ #### [ #????????? | | ?????## ########!= #####=/####??# #????????? | | ?????# ! [ %=%%"= %=%g####### #????????? | | ?????# [ %[%%=[ %%%%% ## #????????? | | #######+###+####%= #####g%# " ## #????????? | | ######???#@%# " ## #????????? | | #????????#%%# " ## #????????? | | """ " " #??####### ]# ## #????????? | | "" ! #??# #=%m ######+####??????? | | " " #??# """ #=%# # ??????? | | """ ! #??# ; # ! # < ??????? | | ] #??# """# # h # ??????? | | ! #??# T"# # " ######+####??????? | | ################### """# # " ### ??????? | | ????????????????????????+ #??? +?+??????????????? | | ????????????????????????# #??? #????????????????? | | ????????????????????????? #????#????????????????? | | ?????????????????????????!! ?????????????????????? | | ?????????????????????????!%%?????????????????????? | | ?????????????????????????!= ?????????????????????? | | ????????????????????????? ?????????????????????? | | ?????????????????????????#;#?????????????????????? | | ??????????????????????????#??????????????????????? | | ?????????????????????????????????????????????????? | | ?????????????????????????????????????????????????? | | ?????????????????????????????????????????????????? | | ?????????????????????????????????????????????????? | | ?????????????????????????????????????????????????? | | ?????????????????????????????????????????????????? | | ?????????????????????????????????????????????????? | +----------------------------------------------------+ Best States ------------- Heat Dissipation 163 Energy Generation 75 Energy Capacity 850 Matter Stores 300 Matter Capacity 300 Sight Range 18 Robot Scan Range 2 Terrain Scan Range 16 Terrain Scan Density 110 Jamming Range 16 Power Amplification 30 Corruption Containment 12 Armor Coverage 5000 Resistance: KI 30 Resistance: TH 30 Resistance: EX 90 Resistance: EM 90 Weapon Shielding 90 Weapon Cycling 25 Phase Shifting 10 Evasion (%) 50 Targeting Accuracy 12 Core Analysis 8 Armor Integrity Analysis 50 Recoil Reduction 4 Matter Filtering 30 Energy Filtering 50 Particle Charging 30 Kinecelleration 40 Salvage Targeting 6 Offensive Hacking 40 Defensive Hacking 29 Item Schematics ----------------- Enh. Autogun | -9/Materials | Scanalyzed Exp. Thermal Shield | -8/Materials | Scanalyzed Exp. Weapon Shielding | -8/Materials | Scanalyzed Adv. Transmission Jammer | -8/Materials | Scanalyzed Lrn. Tractor Beam | -8/Materials | Scanalyzed Hacking Suite | -8/Materials | Scanalyzed Arm. Wheel | -8/Materials | Hacked Adv. Signal Interpreter | -7/Factory | Hacked Riot Gun | -7/Zion | Free Hvy. Riot Gun | -7/Zion | Free Battle Rifle | -7/Zion | Free Battle Cannon | -7/Zion | Free Tactical Coordination Suite | -7/Zion | Free Hvy. Battle Rifle | -7/Zion | Free Mak. System Shield | -7/Zion | Archive Matter Compressor | -7/Zion | Archive Adv. ECM Suite | -7/Zion | Archive Hvy. Flak Cannon | -7/Zion | Archive System Restoration Module | -7/Zion | Archive Lgt. Angular Momentum Engine | -7/Zion | Archive Gravmag System | -7/Zion | Archive KE Penetrator | -7/Zion | Archive Antigrav System | -7/Zion | Archive Component Analysis Suite | -7/Zion | Archive Coil Gun | -7/Zion | Archive Hvy. Rocket Launcher | -7/Zion | Archive Hyp. Gauss Rifle | -7/Zion | Archive Plasma Flamer | -7/Zion | Archive Weapon Cycler | -7/Zion | Archive 0b10 Decoder Chip [Scout] | -6/Factory | Scanalyzed Adv. Heavy Siege Treads | -4/Factory | Scanalyzed Biometal Heavy Treads | -4/Factory | Scanalyzed Quantum Capacitor | -4/Extension | Hacked Robot Schematics ------------------ L-31 Rogue | -7/Zion | Archive K-01 Serf | -7/Zion | Archive G-47 Trooper | -7/Zion | Archive Y-72 Warden | -7/Zion | Archive G-67 Veteran | -4/Hub_04(d) | Hacked Fabricated ------------ Nothing Alien Tech Used ----------------- None Achievements -------------- None Challenges ------------ None RPGLIKE | -11 -10 -10 -9 -9 -9 -8 -8 -8 -8 -8 -8 -8 -7 -7 -7 -7 -6 -6 -6 -5 -5 -5 -4 -4 -4 -4 -4 -4 -4 --------- Run | Jun Mat Min Mat Min Exi Min Mat Gar Mat Gar Mat Gar Fac Low Low Zio Pro Fac DSF Fac Was Fac Fac Was Fac Ext Cet Arc Hub Levels Raised 27 | . 3 1 5 1 . 1 2 1 . 1 . . 2 . . . 1 . 1 2 . 1 1 . 1 1 2 . . XP Earned 44934 | 3000 4821 1484 8289 830 80 1582 2862 1668 558 682 97 682 1928 325 334 82 1101 815 545 2906 67 1766 1164 97 1534 2610 1663 198 1164 XP Spent 43400 | 2750 4450 1750 7510 1400 . 1500 1250 2300 . . . . 2600 2950 . . . . . 4410 1500 1600 . 800 1100 1120 3010 . 1400 Upgrades 63 | 5 9 2 17 1 . 2 1 1 . . . . 1 2 . . . . . 5 3 2 . 1 1 5 4 . 1 Power Slot 2 | . . . . . . 1 . . . . . . . . . . . . . . . . . . . 1 . . . Propulsion Slot 4 | . . . 1 . . . . . . . . . . . . . . . . . . . . 1 1 . . . 1 Utility Slot 10 | 3 1 1 1 . . . . 1 . . . . 1 1 . . . . . 1 . . . . . . . . . Weapon Slot 5 | . 2 . 1 1 . . . . . . . . . . . . . . . . . . . . . . 1 . . Core Integrity 8 | . . . 4 . . . . . . . . . . . . . . . . . . . . . . 4 . . . Heat Dissipation 9 | . . 1 4 . . . . . . . . . . . . . . . . 3 . . . . . . 1 . . Mass Support 1 | . . . . . . . . . . . . . . . . . . . . . . 1 . . . . . . . Inventory Capacity 6 | 1 1 . 1 . . 1 1 . . . . . . . . . . . . . . 1 . . . . . . . Sight Range 2 | 1 . . . . . . . . . . . . . . . . . . . . . . . . . . 1 . . Sensor Range 1 | . . . . . . . . . . . . . . 1 . . . . . . . . . . . . . . . Terrain Scan Density 1 | . 1 . . . . . . . . . . . . . . . . . . . . . . . . . . . . Ranged Accuracy 5 | . 1 . 2 . . . . . . . . . . . . . . . . 1 . . . . . . 1 . . Hack Attack % 2 | . 2 . . . . . . . . . . . . . . . . . . . . . . . . . . . . Hack Defense % 1 | . 1 . . . . . . . . . . . . . . . . . . . . . . . . . . . . KI Damage % 3 | . . . 3 . . . . . . . . . . . . . . . . . . . . . . . . . . TH Damage % 3 | . . . . . . . . . . . . . . . . . . . . . 3 . . . . . . . . Protomatter Created 8708 | . 240 10 692 224 100 395 722 611 443 292 59 564 217 413 199 . 101 . . 217 168 737 . . 49 832 122 74 1227 Integrity Restored 16122 | . 409 . 1544 583 279 599 624 504 616 423 57 464 376 178 239 75 397 . . 586 228 841 . . 378 3365 844 217 2296 Core 9148 | . 336 . 1113 560 279 275 368 210 455 275 57 389 265 119 206 . 38 . . 381 98 472 . . 378 1416 129 112 1217 Parts 6974 | . 73 . 431 23 . 324 256 294 161 148 . 75 111 59 33 75 359 . . 205 130 369 . . . 1949 715 105 1079 Protomatter Decayed 5287 | . 28 10 304 . 18 258 452 695 168 143 89 402 127 286 113 29 7 . . 105 7 447 . 86 262 481 93 . 677 Game ------ Seed DispersionActivePlating Manual? 1 Play Time 04:04:16 Cumulative 505.6 hours Start 2023.03.21 @ 17:49:21 End 2023.03.22 @ 10:35:13 Sessions 1 Manual Loads 0 Difficulty Rogue Special Mode Winter2019/RPGLIKE Game No. 534 Rogue 534 Adventurer 0 Explorer 0 Win Type - Total 1 Types 1/0/0/0/0/0/0/0/0 Lore% 62 Gallery% 82 Achievement% 65 Wizard Run 0 Options --------- ASCII 0 Keyboard 0 Movement Mouse Keybinds 0 Fullscreen 2 Font 24/Smallcaps Map View 76x50 Tactical HUD 1 Map Filters NONE Filters NONE Steam 1 RUN: 6a9cf8a5-5b52-4e5e-b43e-f7fcc424dd03